Effective Date,Department,Supplier Name,Payment Date,Amount**,Purpose of Spend,Merchant Category,Card Transaction
Statement 20/06/2017 to 17/07/2017,Adults and Communities,A W Beesley & Son,20/06/2017,20.00,Grounds Maint-Non Contract - General,"Lawn and Garden Supply Stores, Nurseries",GPC
Statement 20/06/2017 to 17/07/2017,Adults and Communities,Action On Hearing Loss,21/06/2017,482.96,General Equipment - General,Charitable and Social Service Organizations,GPC
Statement 20/06/2017 to 17/07/2017,Adults and Communities,Amazon UK Marketplace,22/06/2017,28.79,Books - General,Book Stores,GPC
Statement 20/06/2017 to 17/07/2017,Adults and Communities,Amazon UK Marketplace,22/06/2017,13.93,Books - General,Book Stores,GPC
Statement 20/06/2017 to 17/07/2017,Adults and Communities,Amazon UK Marketplace,05/07/2017,8.09,Books - General,Book Stores,GPC
Statement 20/06/2017 to 17/07/2017,Adults and Communities,Amazon UK Marketplace,13/07/2017,36.90,Books - General,Book Stores,GPC
Statement 20/06/2017 to 17/07/2017,Adults and Communities,Amazon UK Marketplace,05/07/2017,29.98,Display/Conservn/Exhibitions - Exhibitions,Miscellaneous and Specialty Retail Stores,GPC
Statement 20/06/2017 to 17/07/2017,Adults and Communities,Amazon UK Marketplace,06/07/2017,4.99,Display/Conservn/Exhibitions - Exhibitions,Miscellaneous and Specialty Retail Stores,GPC
Statement 20/06/2017 to 17/07/2017,Adults and Communities,Amazon UK Marketplace,12/07/2017,17.52,Display/Conservn/Exhibitions - General,Book Stores,GPC
Statement 20/06/2017 to 17/07/2017,Adults and Communities,Amazon UK Marketplace,27/06/2017,6.50,Furniture - General,Book Stores,GPC
Statement 20/06/2017 to 17/07/2017,Adults and Communities,Amazon UK Marketplace,27/06/2017,59.99,Furniture - General,Miscellaneous and Specialty Retail Stores,GPC
Statement 20/06/2017 to 17/07/2017,Adults and Communities,Amazon UK Marketplace,27/06/2017,0.57,Furniture - General,Miscellaneous and Specialty Retail Stores,GPC
Statement 20/06/2017 to 17/07/2017,Adults and Communities,Amazon UK Marketplace,20/06/2017,97.26,General Equipment - General,Miscellaneous and Specialty Retail Stores,GPC
Statement 20/06/2017 to 17/07/2017,Adults and Communities,Amazon UK Marketplace,27/06/2017,6.24,General Equipment - General,Miscellaneous and Specialty Retail Stores,GPC
Statement 20/06/2017 to 17/07/2017,Adults and Communities,Amazon UK Marketplace,06/07/2017,9.46,General Equipment - General,Miscellaneous and Specialty Retail Stores,GPC
Statement 20/06/2017 to 17/07/2017,Adults and Communities,Amazon UK Marketplace,11/07/2017,4.32,General Equipment - General,Book Stores,GPC
Statement 20/06/2017 to 17/07/2017,Adults and Communities,Amazon UK Marketplace,11/07/2017,4.15,General Equipment - General,Book Stores,GPC
Statement 20/06/2017 to 17/07/2017,Adults and Communities,Amazon UK Marketplace,12/07/2017,4.48,General Equipment - General,Miscellaneous and Specialty Retail Stores,GPC
Statement 20/06/2017 to 17/07/2017,Adults and Communities,Amazon UK Marketplace,12/07/2017,15.74,General Equipment - General,Miscellaneous and Specialty Retail Stores,GPC
Statement 20/06/2017 to 17/07/2017,Adults and Communities,Amazon UK Marketplace,13/07/2017,25.99,IT Equipment - Licences,Book Stores,GPC
Statement 20/06/2017 to 17/07/2017,Adults and Communities,Amazon UK Marketplace,21/06/2017,3.98,Materials - General,Miscellaneous and Specialty Retail Stores,GPC
Statement 20/06/2017 to 17/07/2017,Adults and Communities,Amazon UK Marketplace,22/06/2017,11.00,Materials - General,Miscellaneous and Specialty Retail Stores,GPC
Statement 20/06/2017 to 17/07/2017,Adults and Communities,Amazon UK Marketplace,22/06/2017,14.00,Materials - General,Miscellaneous and Specialty Retail Stores,GPC
Statement 20/06/2017 to 17/07/2017,Adults and Communities,Amazon UK Marketplace,30/06/2017,17.11,Materials - General,Miscellaneous and Specialty Retail Stores,GPC
Statement 20/06/2017 to 17/07/2017,Adults and Communities,Amazon UK Marketplace,10/07/2017,13.17,Materials - General,Miscellaneous and Specialty Retail Stores,GPC
Statement 20/06/2017 to 17/07/2017,Adults and Communities,Amazon UK Marketplace,14/07/2017,84.95,Materials - General,Miscellaneous and Specialty Retail Stores,GPC
Statement 20/06/2017 to 17/07/2017,Adults and Communities,Amazon UK Marketplace,13/07/2017,99.90,Operational Equipment - DDA,Miscellaneous and Specialty Retail Stores,GPC
Statement 20/06/2017 to 17/07/2017,Adults and Communities,Amazon UK Marketplace,23/06/2017,20.62,Other Equipment & Materials - General,Book Stores,GPC
Statement 20/06/2017 to 17/07/2017,Adults and Communities,Amazon UK Marketplace,23/06/2017,4.62,Other Equipment & Materials - General,Miscellaneous and Specialty Retail Stores,GPC
Statement 20/06/2017 to 17/07/2017,Adults and Communities,Amazon UK Marketplace,06/07/2017,14.99,Other Equipment & Materials - General,Book Stores,GPC
Statement 20/06/2017 to 17/07/2017,Adults and Communities,Amazon UK Marketplace,11/07/2017,6.61,Other Equipment & Materials - General,Miscellaneous and Specialty Retail Stores,GPC
Statement 20/06/2017 to 17/07/2017,Adults and Communities,Amazon UK Marketplace,11/07/2017,2.10,Other Equipment & Materials - General,Miscellaneous and Specialty Retail Stores,GPC
Statement 20/06/2017 to 17/07/2017,Adults and Communities,Amazon UK Marketplace,12/07/2017,1.35,Other Equipment & Materials - General,Book Stores,GPC
Statement 20/06/2017 to 17/07/2017,Adults and Communities,Amazon UK Marketplace,12/07/2017,4.73,Other Equipment & Materials - General,Book Stores,GPC
Statement 20/06/2017 to 17/07/2017,Adults and Communities,Amazon UK Marketplace,12/07/2017,3.38,Other Equipment & Materials - General,Miscellaneous and Specialty Retail Stores,GPC
Statement 20/06/2017 to 17/07/2017,Adults and Communities,Amazon UK Marketplace,13/07/2017,21.54,Other Equipment & Materials - General,Miscellaneous and Specialty Retail Stores,GPC
Statement 20/06/2017 to 17/07/2017,Adults and Communities,Amazon UK Marketplace,22/06/2017,64.95,Other Expenditure - General,Book Stores,GPC
Statement 20/06/2017 to 17/07/2017,Adults and Communities,Amazon UK Marketplace,02/07/2017,6.70,Other Expenditure - General,Book Stores,GPC
Statement 20/06/2017 to 17/07/2017,Adults and Communities,Amazon UK Marketplace,03/07/2017,36.31,Other Expenditure - General,Book Stores,GPC
Statement 20/06/2017 to 17/07/2017,Adults and Communities,Amazon UK Marketplace,06/07/2017,4.89,Other Expenditure - General,Miscellaneous and Specialty Retail Stores,GPC
Statement 20/06/2017 to 17/07/2017,Adults and Communities,Amazon UK Marketplace,12/07/2017,22.74,Other Expenditure - General,Miscellaneous and Specialty Retail Stores,GPC
Statement 20/06/2017 to 17/07/2017,Adults and Communities,Amazon UK Marketplace,07/07/2017,3.33,Protective Clothing & Uniforms - General,Miscellaneous and Specialty Retail Stores,GPC
Statement 20/06/2017 to 17/07/2017,Adults and Communities,Amazon UK Prime Amzn.Co.U,09/07/2017,7.99,Other Expenditure - General,Continuity/Subscription Merchants,GPC
Statement 20/06/2017 to 17/07/2017,Adults and Communities,Amazon UK Retail,16/07/2017,66.67,Display/Conservn/Exhibitions - General,Direct Marketers - Other,GPC
Statement 20/06/2017 to 17/07/2017,Adults and Communities,Amazon UK Retail,28/06/2017,2.70,Furniture - General,Direct Marketers - Other,GPC
Statement 20/06/2017 to 17/07/2017,Adults and Communities,Amazon UK Retail,13/07/2017,2.25,Furniture - General,Direct Marketers - Other,GPC
Statement 20/06/2017 to 17/07/2017,Adults and Communities,Amazon UK Retail,02/07/2017,42.56,Other Equipment & Materials - General,Direct Marketers - Other,GPC
Statement 20/06/2017 to 17/07/2017,Adults and Communities,Amazon UK Retail,21/06/2017,17.69,Other Expenditure - General,Direct Marketers - Other,GPC
Statement 20/06/2017 to 17/07/2017,Adults and Communities,Amazon UK Retail,24/06/2017,8.99,Other Expenditure - General,Direct Marketers - Other,GPC
Statement 20/06/2017 to 17/07/2017,Adults and Communities,Amazon UK Retail,25/06/2017,32.95,Other Expenditure - General,Direct Marketers - Other,GPC
Statement 20/06/2017 to 17/07/2017,Adults and Communities,Amazon UK Retail,25/06/2017,41.96,Other Expenditure - General,Direct Marketers - Other,GPC
Statement 20/06/2017 to 17/07/2017,Adults and Communities,Amazon UK Retail,28/06/2017,73.67,Other Expenditure - General,Direct Marketers - Other,GPC
Statement 20/06/2017 to 17/07/2017,Adults and Communities,Amazon UK Retail,04/07/2017,11.99,Other Expenditure - General,Direct Marketers - Other,GPC
Statement 20/06/2017 to 17/07/2017,Adults and Communities,Amazon UK Retail,06/07/2017,7.99,Other Expenditure - General,Direct Marketers - Other,GPC
Statement 20/06/2017 to 17/07/2017,Adults and Communities,Amazon UK Retail,28/06/2017,16.78,Stationery - General,Direct Marketers - Other,GPC
Statement 20/06/2017 to 17/07/2017,Adults and Communities,Amazon UK Retail,29/06/2017,69.93,Stationery - General,Direct Marketers - Other,GPC
Statement 20/06/2017 to 17/07/2017,Adults and Communities,Amazon UK Retail Amazon.C,27/06/2017,20.00,Materials - General,Miscellaneous and Specialty Retail Stores,GPC
Statement 20/06/2017 to 17/07/2017,Adults and Communities,Amazon UK Retail Amazon.C,05/07/2017,55.54,Materials - General,Miscellaneous and Specialty Retail Stores,GPC
Statement 20/06/2017 to 17/07/2017,Adults and Communities,Amazon UK Retail Amazon.C,13/07/2017,11.46,Materials - General,Miscellaneous and Specialty Retail Stores,GPC
Statement 20/06/2017 to 17/07/2017,Adults and Communities,Amazon.Co.Uk,27/06/2017,2.71,Furniture - General,Miscellaneous and Specialty Retail Stores,GPC
Statement 20/06/2017 to 17/07/2017,Adults and Communities,Amazon.Co.Uk,06/07/2017,35.06,General Equipment - General,Miscellaneous and Specialty Retail Stores,GPC
Statement 20/06/2017 to 17/07/2017,Adults and Communities,Amazon.Co.Uk,12/07/2017,3.02,General Equipment - General,Miscellaneous and Specialty Retail Stores,GPC
Statement 20/06/2017 to 17/07/2017,Adults and Communities,Amazon.Co.Uk,12/07/2017,6.75,General Equipment - General,Miscellaneous and Specialty Retail Stores,GPC
Statement 20/06/2017 to 17/07/2017,Adults and Communities,Amazon.Co.Uk,20/06/2017,7.29,Materials - General,Miscellaneous and Specialty Retail Stores,GPC
Statement 20/06/2017 to 17/07/2017,Adults and Communities,Amazon.Co.Uk,21/06/2017,9.97,Materials - General,Miscellaneous and Specialty Retail Stores,GPC
Statement 20/06/2017 to 17/07/2017,Adults and Communities,Amazon.Co.Uk,22/06/2017,77.70,Materials - General,Miscellaneous and Specialty Retail Stores,GPC
Statement 20/06/2017 to 17/07/2017,Adults and Communities,Amazon.Co.Uk,23/06/2017,108.63,Materials - General,Miscellaneous and Specialty Retail Stores,GPC
Statement 20/06/2017 to 17/07/2017,Adults and Communities,Amazon.Co.Uk,07/07/2017,4.40,Materials - General,Miscellaneous and Specialty Retail Stores,GPC
Statement 20/06/2017 to 17/07/2017,Adults and Communities,Amazon.Co.Uk,01/07/2017,17.71,Other Equipment & Materials - General,Miscellaneous and Specialty Retail Stores,GPC
Statement 20/06/2017 to 17/07/2017,Adults and Communities,Amazon.Co.Uk,24/06/2017,14.99,Other Services - General,Miscellaneous and Specialty Retail Stores,GPC
Statement 20/06/2017 to 17/07/2017,Adults and Communities,Amazon.Co.Uk,15/07/2017,46.06,Stationery - General,Miscellaneous and Specialty Retail Stores,GPC
Statement 20/06/2017 to 17/07/2017,Adults and Communities,Amz*zoegx,09/07/2017,-0.57,Materials - General,Miscellaneous and Specialty Retail Stores,GPC
Statement 20/06/2017 to 17/07/2017,Adults and Communities,Argos Ltd,16/07/2017,19.99,General Equipment - General,Discount Stores,GPC
Statement 20/06/2017 to 17/07/2017,Adults and Communities,Argos Retail Group,07/07/2017,41.65,Other Expenditure - General,Discount Stores,GPC
Statement 20/06/2017 to 17/07/2017,Adults and Communities,Arriva Passenger S,07/07/2017,58.00,Other Expenditure - General,Automotive Repair Shops (non-dealer),GPC
Statement 20/06/2017 to 17/07/2017,Adults and Communities,Asda George Com Leeds,23/06/2017,6.00,Materials - General,"Grocery Stores, Supermarkets",GPC
Statement 20/06/2017 to 17/07/2017,Adults and Communities,Asda Stores,28/06/2017,7.50,Materials - General,"Grocery Stores, Supermarkets",GPC
Statement 20/06/2017 to 17/07/2017,Adults and Communities,Asda Stores 4477,29/06/2017,6.44,Client/Volunteers - General,"Grocery Stores, Supermarkets",GPC
Statement 20/06/2017 to 17/07/2017,Adults and Communities,Asda Stores 4477,24/06/2017,2.00,Materials - General,"Grocery Stores, Supermarkets",GPC
Statement 20/06/2017 to 17/07/2017,Adults and Communities,Asda Stores 4477,24/06/2017,4.90,Materials - General,"Grocery Stores, Supermarkets",GPC
Statement 20/06/2017 to 17/07/2017,Adults and Communities,Asda Superstore,23/06/2017,4.17,Consultants & Specialists - General,"Grocery Stores, Supermarkets",GPC
Statement 20/06/2017 to 17/07/2017,Adults and Communities,Axminster.Co.Uk,20/06/2017,119.41,R & M of Buildings - General,"Building Materials, Lumber Stores",GPC
Statement 20/06/2017 to 17/07/2017,Adults and Communities,Axminster.Co.Uk,20/06/2017,17.70,R & M of Buildings - General,"Building Materials, Lumber Stores",GPC
Statement 20/06/2017 to 17/07/2017,Adults and Communities,B & Q 1012,19/06/2017,120.85,R & M of Buildings - General,"Building Materials, Lumber Stores",GPC
Statement 20/06/2017 to 17/07/2017,Adults and Communities,B&m Retail Ltd,12/07/2017,2.97,Materials - General,Discount Stores,GPC
Statement 20/06/2017 to 17/07/2017,Adults and Communities,B&m Retail Ltd,28/06/2017,7.99,Other Expenditure - General,Discount Stores,GPC
Statement 20/06/2017 to 17/07/2017,Adults and Communities,Baker Ross Ltd,11/07/2017,56.96,Display/Conservn/Exhibitions - Exhibitions,"Artist Supply Stores, Craft Shops",GPC
Statement 20/06/2017 to 17/07/2017,Adults and Communities,Baker Ross Ltd,28/06/2017,19.47,Materials - General,"Artist Supply Stores, Craft Shops",GPC
Statement 20/06/2017 to 17/07/2017,Adults and Communities,Baker Ross Ltd,14/07/2017,13.55,Materials - General,"Artist Supply Stores, Craft Shops",GPC
Statement 20/06/2017 to 17/07/2017,Adults and Communities,Bbcn Leicester Wigston,04/07/2017,193.92,Other Expenditure - General,Child Care Services,GPC
Statement 20/06/2017 to 17/07/2017,Adults and Communities,Bc.Basecamp 2 2997305,01/07/2017,15.45,Other Services - General,Membership Organizations-Not Elsewhere Classified,GPC
Statement 20/06/2017 to 17/07/2017,Adults and Communities,Boc Tel Order,13/07/2017,5.10,Operational Equipment - General,Chemicals and Allied Products Not Elsewhere Classi,GPC
Statement 20/06/2017 to 17/07/2017,Adults and Communities,Boots 0020,23/06/2017,40.00,Other Equipment & Materials - General,"Drug Stores, Pharmacies",GPC
Statement 20/06/2017 to 17/07/2017,Adults and Communities,Central Eng Coop,22/06/2017,52.85,Provisions - General,Department Stores,GPC
Statement 20/06/2017 to 17/07/2017,Adults and Communities,Central Eng Coop,23/06/2017,37.10,Provisions - General,Department Stores,GPC
Statement 20/06/2017 to 17/07/2017,Adults and Communities,Central Eng Coop,30/06/2017,4.00,Provisions - General,Department Stores,GPC
Statement 20/06/2017 to 17/07/2017,Adults and Communities,Central Eng Coop,03/07/2017,30.14,Provisions - General,Department Stores,GPC
Statement 20/06/2017 to 17/07/2017,Adults and Communities,Central Eng Coop,05/07/2017,2.00,Provisions - General,Department Stores,GPC
Statement 20/06/2017 to 17/07/2017,Adults and Communities,Central Eng Coop,06/07/2017,88.72,Provisions - General,Department Stores,GPC
Statement 20/06/2017 to 17/07/2017,Adults and Communities,Central Eng Coop,06/07/2017,18.79,Provisions - General,Department Stores,GPC
Statement 20/06/2017 to 17/07/2017,Adults and Communities,Central Eng Coop,08/07/2017,28.89,Provisions - General,Department Stores,GPC
Statement 20/06/2017 to 17/07/2017,Adults and Communities,Central Eng Coop,08/07/2017,3.00,Provisions - General,Department Stores,GPC
Statement 20/06/2017 to 17/07/2017,Adults and Communities,Central Eng Coop,11/07/2017,23.25,Provisions - General,Department Stores,GPC
Statement 20/06/2017 to 17/07/2017,Adults and Communities,Central Eng Coop,13/07/2017,105.14,Provisions - General,Department Stores,GPC
Statement 20/06/2017 to 17/07/2017,Adults and Communities,Central Eng Coop,14/07/2017,12.01,Provisions - General,Department Stores,GPC
Statement 20/06/2017 to 17/07/2017,Adults and Communities,Charnwood Borough Counci,19/06/2017,6.00,Casual/Essential - General,Automobile Parking Lots and Garages,GPC
Statement 20/06/2017 to 17/07/2017,Adults and Communities,Charnwood Borough Counci,20/06/2017,3.17,Casual/Essential - General,Automobile Parking Lots and Garages,GPC
Statement 20/06/2017 to 17/07/2017,Adults and Communities,Charnwood Borough Counci,22/06/2017,2.20,Casual/Essential - General,Automobile Parking Lots and Garages,GPC
Statement 20/06/2017 to 17/07/2017,Adults and Communities,Chimichanga,22/06/2017,25.00,Conference - General,"Eating Places, Restaurants",GPC
Statement 20/06/2017 to 17/07/2017,Adults and Communities,Comms Exp,28/06/2017,43.14,Other Expenditure - General,"RADIO, TELEVISION, AND STEREO STORES (ELECTRONIC STORES)",GPC
Statement 20/06/2017 to 17/07/2017,Adults and Communities,Crossbow Education,20/06/2017,8.94,Operational Equipment - DDA,Correspondence Schools,GPC
Statement 20/06/2017 to 17/07/2017,Adults and Communities,Currys,29/06/2017,232.50,Materials - General,"RADIO, TELEVISION, AND STEREO STORES (ELECTRONIC STORES)",GPC
Statement 20/06/2017 to 17/07/2017,Adults and Communities,Dvla Vehicle Tax,23/06/2017,242.50,Road Licences - General,Government Services-Not Elsewhere Classified,GPC
Statement 20/06/2017 to 17/07/2017,Adults and Communities,Dvla Vehicle Tax,23/06/2017,242.50,Road Licences - General,Government Services-Not Elsewhere Classified,GPC
Statement 20/06/2017 to 17/07/2017,Adults and Communities,Dyson Limited(Bbt Gbp),21/06/2017,420.83,General Equipment - General,Household Appliance Stores,GPC
Statement 20/06/2017 to 17/07/2017,Adults and Communities,E Coast Main Ln Co Ltd,23/06/2017,36.67,Public Transport -  Staff - General,Automobile Parking Lots and Garages,GPC
Statement 20/06/2017 to 17/07/2017,Adults and Communities,E Coast Main Ln Co Ltd,10/07/2017,5.83,Public Transport -  Staff - General,Automobile Parking Lots and Garages,GPC
Statement 20/06/2017 to 17/07/2017,Adults and Communities,E Coast Main Ln Co Ltd,12/07/2017,5.83,Public Transport -  Staff - General,Automobile Parking Lots and Garages,GPC
Statement 20/06/2017 to 17/07/2017,Adults and Communities,East Midlands Trai,20/06/2017,79.20,Public Transport -  Staff - General,Passenger Railways,GPC
Statement 20/06/2017 to 17/07/2017,Adults and Communities,East Midlands Trains,04/07/2017,142.00,Casual/Essential - General,Passenger Railways,GPC
Statement 20/06/2017 to 17/07/2017,Adults and Communities,East Midlands Trains,12/07/2017,112.30,Casual/Essential - General,Passenger Railways,GPC
Statement 20/06/2017 to 17/07/2017,Adults and Communities,East Midlands Trains,28/06/2017,49.00,Public Transport -  Staff - General,Passenger Railways,GPC
Statement 20/06/2017 to 17/07/2017,Adults and Communities,East Midlands Trains,13/07/2017,19.80,Public Transport -  Staff - General,Passenger Railways,GPC
Statement 20/06/2017 to 17/07/2017,Adults and Communities,Ee & T-Mobile,28/06/2017,482.53,Other Expenditure - General,Telecommunication Service Including Local and Long,GPC
Statement 20/06/2017 to 17/07/2017,Adults and Communities,Euroffice.Co.Uk,06/07/2017,65.68,General Equipment - General,"Stationery, Office, and School Supply Stores",GPC
Statement 20/06/2017 to 17/07/2017,Adults and Communities,Fast Key Services Limi,27/06/2017,13.51,General Equipment - General,Business Services-Not Elsewhere Classified,GPC
Statement 20/06/2017 to 17/07/2017,Adults and Communities,Fast Key Services Limi,28/06/2017,26.13,General Equipment - General,Business Services-Not Elsewhere Classified,GPC
Statement 20/06/2017 to 17/07/2017,Adults and Communities,Gildings Ltd,06/07/2017,110.03,Schools Agency staff - Teaching Staff,Professional Services-Not Elsewhere Classified,GPC
Statement 20/06/2017 to 17/07/2017,Adults and Communities,Gov.Uk/dart-Charge,21/06/2017,5.00,Casual/Essential - General,"Bridge and Road Fees, Tolls",GPC
Statement 20/06/2017 to 17/07/2017,Adults and Communities,Grays Kitchen,11/07/2017,4.17,Other Expenditure - General,"Eating Places, Restaurants",GPC
Statement 20/06/2017 to 17/07/2017,Adults and Communities,Gro Hm Passport Office,21/06/2017,27.75,Other Expenditure - General,Government Services-Not Elsewhere Classified,GPC
Statement 20/06/2017 to 17/07/2017,Adults and Communities,Gro Hm Passport Office,05/07/2017,9.25,Other Expenditure - General,Government Services-Not Elsewhere Classified,GPC
Statement 20/06/2017 to 17/07/2017,Adults and Communities,Gro Hm Passport Office,14/07/2017,9.25,Other Expenditure - General,Government Services-Not Elsewhere Classified,GPC
Statement 20/06/2017 to 17/07/2017,Adults and Communities,Home Bargains,23/06/2017,3.39,Other Equipment & Materials - General,Hardware Stores,GPC
Statement 20/06/2017 to 17/07/2017,Adults and Communities,Iceland,22/06/2017,9.25,Other Expenditure - General,"Grocery Stores, Supermarkets",GPC
Statement 20/06/2017 to 17/07/2017,Adults and Communities,Iceland,22/06/2017,21.90,Provisions - General,"Grocery Stores, Supermarkets",GPC
Statement 20/06/2017 to 17/07/2017,Adults and Communities,Iceland,23/06/2017,18.29,Provisions - General,"Grocery Stores, Supermarkets",GPC
Statement 20/06/2017 to 17/07/2017,Adults and Communities,Iceland,06/07/2017,38.08,Provisions - General,"Grocery Stores, Supermarkets",GPC
Statement 20/06/2017 to 17/07/2017,Adults and Communities,Iceland,11/07/2017,14.00,Provisions - General,"Grocery Stores, Supermarkets",GPC
Statement 20/06/2017 to 17/07/2017,Adults and Communities,Iceland,13/07/2017,14.35,Provisions - General,"Grocery Stores, Supermarkets",GPC
Statement 20/06/2017 to 17/07/2017,Adults and Communities,Ikea Limited,28/06/2017,20.10,Materials - General,"Furniture, Home Furnishings and Equipment Stores,",GPC
Statement 20/06/2017 to 17/07/2017,Adults and Communities,Information not provided,06/07/2017,2.45,IT Equipment - General,Misc-Unknown,GPC
Statement 20/06/2017 to 17/07/2017,Adults and Communities,Information not provided,03/07/2017,0.42,IT Equipment - Licences,Misc-Unknown,GPC
Statement 20/06/2017 to 17/07/2017,Adults and Communities,Lcc Catering Services,27/06/2017,9.55,Other Expenditure - General,Government Services-Not Elsewhere Classified,GPC
Statement 20/06/2017 to 17/07/2017,Adults and Communities,Lcc Npu 1,19/06/2017,35.00,Materials - General,Government Services-Not Elsewhere Classified,GPC
Statement 20/06/2017 to 17/07/2017,Adults and Communities,Lcc Online,28/06/2017,10.00,Other Services - General,Government Services-Not Elsewhere Classified,GPC
Statement 20/06/2017 to 17/07/2017,Adults and Communities,Leic City Council,20/06/2017,14.00,Other Expenditure - General,Government Services-Not Elsewhere Classified,GPC
Statement 20/06/2017 to 17/07/2017,Adults and Communities,Leic City Council,20/06/2017,14.00,Other Expenditure - General,Government Services-Not Elsewhere Classified,GPC
Statement 20/06/2017 to 17/07/2017,Adults and Communities,Leic City Council,26/06/2017,14.00,Other Expenditure - General,Government Services-Not Elsewhere Classified,GPC
Statement 20/06/2017 to 17/07/2017,Adults and Communities,Leic City Council,26/06/2017,14.00,Other Expenditure - General,Government Services-Not Elsewhere Classified,GPC
Statement 20/06/2017 to 17/07/2017,Adults and Communities,Leic City Council,28/06/2017,14.00,Other Expenditure - General,Government Services-Not Elsewhere Classified,GPC
Statement 20/06/2017 to 17/07/2017,Adults and Communities,Leic City Council,28/06/2017,14.00,Other Expenditure - General,Government Services-Not Elsewhere Classified,GPC
Statement 20/06/2017 to 17/07/2017,Adults and Communities,Leic City Council,13/07/2017,14.00,Other Expenditure - General,Government Services-Not Elsewhere Classified,GPC
Statement 20/06/2017 to 17/07/2017,Adults and Communities,Leic City Council,13/07/2017,14.00,Other Expenditure - General,Government Services-Not Elsewhere Classified,GPC
Statement 20/06/2017 to 17/07/2017,Adults and Communities,Leic City Council,13/07/2017,14.00,Other Expenditure - General,Government Services-Not Elsewhere Classified,GPC
Statement 20/06/2017 to 17/07/2017,Adults and Communities,Leic City Council,13/07/2017,14.00,Other Expenditure - General,Government Services-Not Elsewhere Classified,GPC
Statement 20/06/2017 to 17/07/2017,Adults and Communities,Leic City Council,13/07/2017,24.00,Other Expenditure - General,Government Services-Not Elsewhere Classified,GPC
Statement 20/06/2017 to 17/07/2017,Adults and Communities,Leic City Council,13/07/2017,24.00,Other Expenditure - General,Government Services-Not Elsewhere Classified,GPC
Statement 20/06/2017 to 17/07/2017,Adults and Communities,Leic City Council,13/07/2017,14.00,Other Expenditure - General,Government Services-Not Elsewhere Classified,GPC
Statement 20/06/2017 to 17/07/2017,Adults and Communities,Loros,22/06/2017,8.25,Other Equipment & Materials - General,Charitable and Social Service Organizations,GPC
Statement 20/06/2017 to 17/07/2017,Adults and Communities,Loros,14/07/2017,8.50,Other Equipment & Materials - General,Charitable and Social Service Organizations,GPC
Statement 20/06/2017 to 17/07/2017,Adults and Communities,Marsden-Weighing.C,19/06/2017,115.00,Other Services - General,Commercial Equipment Not Elsewhere Classified,GPC
Statement 20/06/2017 to 17/07/2017,Adults and Communities,Max Spielmann Ltd,03/07/2017,12.25,General Equipment - General,Photographic Studios,GPC
Statement 20/06/2017 to 17/07/2017,Adults and Communities,Museumsassc,11/07/2017,260.00,Conference - General,Charitable and Social Service Organizations,GPC
Statement 20/06/2017 to 17/07/2017,Adults and Communities,National Car Parks,27/06/2017,9.17,Public Transport -  Staff - General,Automobile Parking Lots and Garages,GPC
Statement 20/06/2017 to 17/07/2017,Adults and Communities,Ncp Limited,21/06/2017,10.00,Casual/Essential - General,Automobile Parking Lots and Garages,GPC
Statement 20/06/2017 to 17/07/2017,Adults and Communities,Ncp Limited,05/07/2017,10.00,Casual/Essential - General,Automobile Parking Lots and Garages,GPC
Statement 20/06/2017 to 17/07/2017,Adults and Communities,Ncp Limited,11/07/2017,6.20,Casual/Essential - General,Automobile Parking Lots and Garages,GPC
Statement 20/06/2017 to 17/07/2017,Adults and Communities,Ncp Limited,11/07/2017,4.17,Public Transport -  Staff - General,Automobile Parking Lots and Garages,GPC
Statement 20/06/2017 to 17/07/2017,Adults and Communities,Ncp Ringo M Offst,27/06/2017,5.83,Public Transport -  Staff - General,Automobile Parking Lots and Garages,GPC
Statement 20/06/2017 to 17/07/2017,Adults and Communities,Nottm Castle Shop,19/06/2017,10.83,Consultants & Specialists - General,Government Services-Not Elsewhere Classified,GPC
Statement 20/06/2017 to 17/07/2017,Adults and Communities,Nrs Healthcare,19/06/2017,91.80,Other Services - General,Laboratory/Medical/Dental/Ophthalmic Hospital Equi,GPC
Statement 20/06/2017 to 17/07/2017,Adults and Communities,Ocado Ltd.,23/06/2017,117.00,Provisions - General,"Miscellaneous Food Stores-Convenience Stores, Mark",GPC
Statement 20/06/2017 to 17/07/2017,Adults and Communities,Ocado Ltd.,05/07/2017,9.99,Provisions - General,"Miscellaneous Food Stores-Convenience Stores, Mark",GPC
Statement 20/06/2017 to 17/07/2017,Adults and Communities,Ocado Retail Limit,26/06/2017,100.45,Materials - General,"Grocery Stores, Supermarkets",GPC
Statement 20/06/2017 to 17/07/2017,Adults and Communities,Ocado Retail Limit,30/06/2017,73.41,Materials - General,"Grocery Stores, Supermarkets",GPC
Statement 20/06/2017 to 17/07/2017,Adults and Communities,Ocado Retail Limit,03/07/2017,68.87,Materials - General,"Grocery Stores, Supermarkets",GPC
Statement 20/06/2017 to 17/07/2017,Adults and Communities,Ocado Retail Limit,07/07/2017,45.14,Materials - General,"Grocery Stores, Supermarkets",GPC
Statement 20/06/2017 to 17/07/2017,Adults and Communities,Ocado Retail Limit,10/07/2017,76.85,Materials - General,"Grocery Stores, Supermarkets",GPC
Statement 20/06/2017 to 17/07/2017,Adults and Communities,Ocado Retail Limit,14/07/2017,86.56,Materials - General,"Grocery Stores, Supermarkets",GPC
Statement 20/06/2017 to 17/07/2017,Adults and Communities,Ocado Retail Limit,21/06/2017,117.68,Provisions - General,"Miscellaneous Food Stores-Convenience Stores, Mark",GPC
Statement 20/06/2017 to 17/07/2017,Adults and Communities,Omniwask Uk,11/07/2017,125.00,Other Expenditure - General,Household Appliance Stores,GPC
Statement 20/06/2017 to 17/07/2017,Adults and Communities,P S Wholesale,30/06/2017,80.00,Materials - General,"Gift, Card, Novelty, and Souvenir Shops",GPC
Statement 20/06/2017 to 17/07/2017,Adults and Communities,P S Wholesale,30/06/2017,5.95,Other Expenditure - General,"Gift, Card, Novelty, and Souvenir Shops",GPC
Statement 20/06/2017 to 17/07/2017,Adults and Communities,Paypal *antiquechap,11/07/2017,18.70,Materials - General,"Used Merchandise Stores, Second Hand Stores",GPC
Statement 20/06/2017 to 17/07/2017,Adults and Communities,Paypal *beverlyrobe,04/07/2017,10.88,Other Equipment & Materials - General,Miscellaneous and Specialty Retail Stores,GPC
Statement 20/06/2017 to 17/07/2017,Adults and Communities,Paypal *cheapshop,03/07/2017,62.40,Other Equipment & Materials - General,Variety Stores,GPC
Statement 20/06/2017 to 17/07/2017,Adults and Communities,Paypal *ckcollectio,11/07/2017,14.97,General Equipment - General,Miscellaneous Apparel and Accessory Stores,GPC
Statement 20/06/2017 to 17/07/2017,Adults and Communities,Paypal *damianevans,12/07/2017,3.99,Other Equipment & Materials - General,Book Stores,GPC
Statement 20/06/2017 to 17/07/2017,Adults and Communities,Paypal *digiflex,06/07/2017,2.99,Other Equipment & Materials - General,"RADIO, TELEVISION, AND STEREO STORES (ELECTRONIC STORES)",GPC
Statement 20/06/2017 to 17/07/2017,Adults and Communities,Paypal *dis Clean,06/07/2017,4.10,Other Equipment & Materials - General,Miscellaneous House Furnishing Specialty Shops,GPC
Statement 20/06/2017 to 17/07/2017,Adults and Communities,Paypal *dr Zigs Ltd,04/07/2017,85.82,Display/Conservn/Exhibitions - Exhibitions,"Artist Supply Stores, Craft Shops",GPC
Statement 20/06/2017 to 17/07/2017,Adults and Communities,Paypal *dresscode,13/07/2017,2.49,Materials - General,Men's and Boy's Clothing and Furnishings Store,GPC
Statement 20/06/2017 to 17/07/2017,Adults and Communities,Paypal *emeraldoffi,11/07/2017,2.90,Materials - General,"RADIO, TELEVISION, AND STEREO STORES (ELECTRONIC STORES)",GPC
Statement 20/06/2017 to 17/07/2017,Adults and Communities,Paypal *faheem,11/07/2017,3.80,Other Equipment & Materials - General,Professional Services-Not Elsewhere Classified,GPC
Statement 20/06/2017 to 17/07/2017,Adults and Communities,Paypal *fancy Pants,12/07/2017,3.29,Other Equipment & Materials - General,Women's Ready to Wear Shoes,GPC
Statement 20/06/2017 to 17/07/2017,Adults and Communities,Paypal *jbeal1988,12/07/2017,5.28,Other Equipment & Materials - General,Women's Ready to Wear Shoes,GPC
Statement 20/06/2017 to 17/07/2017,Adults and Communities,Paypal *just4babysg,12/07/2017,6.99,Other Equipment & Materials - General,Children's and Infants' Wear Stores,GPC
Statement 20/06/2017 to 17/07/2017,Adults and Communities,Paypal *lampshoponl,30/06/2017,6.32,General Equipment - General,Miscellaneous House Furnishing Specialty Shops,GPC
Statement 20/06/2017 to 17/07/2017,Adults and Communities,Paypal *legsgalorel,12/07/2017,4.45,Other Equipment & Materials - General,Women's Ready to Wear Shoes,GPC
Statement 20/06/2017 to 17/07/2017,Adults and Communities,Paypal *lishuixuan,04/07/2017,0.35,Other Equipment & Materials - General,Variety Stores,GPC
Statement 20/06/2017 to 17/07/2017,Adults and Communities,Paypal *lotusaccess,12/07/2017,2.99,Other Equipment & Materials - General,Miscellaneous Apparel and Accessory Stores,GPC
Statement 20/06/2017 to 17/07/2017,Adults and Communities,Paypal *luzhouguoji,12/07/2017,5.59,Other Equipment & Materials - General,"RADIO, TELEVISION, AND STEREO STORES (ELECTRONIC STORES)",GPC
Statement 20/06/2017 to 17/07/2017,Adults and Communities,Paypal *luzhouguoji,12/07/2017,2.95,Other Equipment & Materials - General,"RADIO, TELEVISION, AND STEREO STORES (ELECTRONIC STORES)",GPC
Statement 20/06/2017 to 17/07/2017,Adults and Communities,Paypal *maple969,12/07/2017,2.93,Other Equipment & Materials - General,Variety Stores,GPC
Statement 20/06/2017 to 17/07/2017,Adults and Communities,Paypal *mbabar22,12/07/2017,8.98,Other Equipment & Materials - General,Miscellaneous and Specialty Retail Stores,GPC
Statement 20/06/2017 to 17/07/2017,Adults and Communities,Paypal *michaelp161,27/06/2017,2.99,Other Equipment & Materials - General,Miscellaneous and Specialty Retail Stores,GPC
Statement 20/06/2017 to 17/07/2017,Adults and Communities,Paypal *monsterbook,12/07/2017,2.39,Other Equipment & Materials - General,Book Stores,GPC
Statement 20/06/2017 to 17/07/2017,Adults and Communities,Paypal *museumsassc,13/07/2017,380.00,Conference - General,Charitable and Social Service Organizations,GPC
Statement 20/06/2017 to 17/07/2017,Adults and Communities,Paypal *must4sportl,06/07/2017,2.45,Other Equipment & Materials - General,Shoe Stores,GPC
Statement 20/06/2017 to 17/07/2017,Adults and Communities,Paypal *rapidonline,19/06/2017,22.76,Materials - General,Hardware Stores,GPC
Statement 20/06/2017 to 17/07/2017,Adults and Communities,Paypal *royal Mail,07/07/2017,0.76,Other Expenditure - General,Professional Services-Not Elsewhere Classified,GPC
Statement 20/06/2017 to 17/07/2017,Adults and Communities,Paypal *salamoerxia,06/07/2017,1.12,Other Equipment & Materials - General,Camera and Photographic Supply Stores,GPC
Statement 20/06/2017 to 17/07/2017,Adults and Communities,Paypal *shenzhenshi,04/07/2017,0.17,Other Equipment & Materials - General,Variety Stores,GPC
Statement 20/06/2017 to 17/07/2017,Adults and Communities,Paypal *speedy Hen,28/06/2017,16.80,Books - General,Book Stores,GPC
Statement 20/06/2017 to 17/07/2017,Adults and Communities,Paypal *vtplastics,20/06/2017,55.20,Operational Equipment - General,Miscellaneous and Specialty Retail Stores,GPC
Statement 20/06/2017 to 17/07/2017,Adults and Communities,Peacocks Stores,12/07/2017,19.20,Furniture - General,Variety Stores,GPC
Statement 20/06/2017 to 17/07/2017,Adults and Communities,Pennywise Wigston Limited,22/06/2017,10.89,Cleaning Materials - General,"Grocery Stores, Supermarkets",GPC
Statement 20/06/2017 to 17/07/2017,Adults and Communities,Pestfix,14/07/2017,13.23,Other Expenditure - General,Nondurable Goods Not Elsewhere Classified,GPC
Statement 20/06/2017 to 17/07/2017,Adults and Communities,Playmobil/Lechuza UK Ltd.,05/07/2017,75.80,Display/Conservn/Exhibitions - Exhibitions,"Hobby, Toy, and Game Shops",GPC
Statement 20/06/2017 to 17/07/2017,Adults and Communities,Post Office Counter,05/07/2017,1.78,Postal Services - General,Postage Stamps,GPC
Statement 20/06/2017 to 17/07/2017,Adults and Communities,Post Office Counter,06/07/2017,1.30,Postal Services - General,Postage Stamps,GPC
Statement 20/06/2017 to 17/07/2017,Adults and Communities,Post Office Counter,07/07/2017,2.08,Postal Services - General,Postage Stamps,GPC
Statement 20/06/2017 to 17/07/2017,Adults and Communities,Post Office Counter,13/07/2017,3.50,Postal Services - General,Postage Stamps,GPC
Statement 20/06/2017 to 17/07/2017,Adults and Communities,Post Office Shop,04/07/2017,184.20,General Equipment - General,Postage Stamps,GPC
Statement 20/06/2017 to 17/07/2017,Adults and Communities,Poundland,05/07/2017,6.00,Other Expenditure - General,Discount Stores,GPC
Statement 20/06/2017 to 17/07/2017,Adults and Communities,Poundstretcher 292,29/06/2017,11.94,Cleaning Materials - General,"Drapery, Window Coverings, and Upholstery Stores",GPC
Statement 20/06/2017 to 17/07/2017,Adults and Communities,Premier Inn 44536840,20/06/2017,198.33,Conference - General,PREMIER TRAVEL,GPC
Statement 20/06/2017 to 17/07/2017,Adults and Communities,Premier Inn 44536840,20/06/2017,198.33,Conference - General,PREMIER TRAVEL,GPC
Statement 20/06/2017 to 17/07/2017,Adults and Communities,Premier Inn 44536840,20/06/2017,22.48,Conference - General,PREMIER TRAVEL,GPC
Statement 20/06/2017 to 17/07/2017,Adults and Communities,Premier Inn 44536840,21/06/2017,22.48,Conference - General,PREMIER TRAVEL,GPC
Statement 20/06/2017 to 17/07/2017,Adults and Communities,Pret A Manger,10/07/2017,6.47,Conference - General,"Eating Places, Restaurants",GPC
Statement 20/06/2017 to 17/07/2017,Adults and Communities,Primark 477,12/07/2017,5.00,Materials - General,Family Clothing Stores,GPC
Statement 20/06/2017 to 17/07/2017,Adults and Communities,Prime Instantvideo,25/06/2017,5.99,Other Expenditure - General,Continuity/Subscription Merchants,GPC
Statement 20/06/2017 to 17/07/2017,Adults and Communities,Robert Newbold And Sons L,22/06/2017,66.67,Miscellaneous Insurance - General,Floor Coverings   Stores,GPC
Statement 20/06/2017 to 17/07/2017,Adults and Communities,Robert Newbold And Sons L,22/06/2017,66.67,Miscellaneous Insurance - General,Floor Coverings   Stores,GPC
Statement 20/06/2017 to 17/07/2017,Adults and Communities,Robert Newbold And Sons L,22/06/2017,66.67,Miscellaneous Insurance - General,Floor Coverings   Stores,GPC
Statement 20/06/2017 to 17/07/2017,Adults and Communities,Rothley Court Hotel,29/06/2017,4.84,Other Expenditure - General,"Drinking Places (Alcoholic Beverages)-Bars, Tavern",GPC
Statement 20/06/2017 to 17/07/2017,Adults and Communities,Royal Mail,28/06/2017,56.00,Postal Services - General,Postage Stamps,GPC
Statement 20/06/2017 to 17/07/2017,Adults and Communities,Royal Mail,29/06/2017,188.00,Postal Services - General,Postage Stamps,GPC
Statement 20/06/2017 to 17/07/2017,Adults and Communities,Royal Mail Online Shop,04/07/2017,56.00,Postal Services - General,Postage Stamps,GPC
Statement 20/06/2017 to 17/07/2017,Adults and Communities,Rs Components,11/07/2017,45.01,R & M of Buildings - General,Electrical Parts and Equipment,GPC
Statement 20/06/2017 to 17/07/2017,Adults and Communities,Ryman,04/07/2017,5.61,Stationery - General,"Stationery, Office, and School Supply Stores",GPC
Statement 20/06/2017 to 17/07/2017,Adults and Communities,Ryman,12/07/2017,2.99,Stationery - General,"Stationery, Office, and School Supply Stores",GPC
Statement 20/06/2017 to 17/07/2017,Adults and Communities,Saebo UK Ltd,03/07/2017,257.50,Other Equipment & Materials - General,Laboratory/Medical/Dental/Ophthalmic Hospital Equi,GPC
Statement 20/06/2017 to 17/07/2017,Adults and Communities,Safestore Limited,28/06/2017,129.49,Other Support - Main Programme,Public Warehousing,GPC
Statement 20/06/2017 to 17/07/2017,Adults and Communities,Safestore Limited,14/07/2017,-95.61,Other Support - Main Programme,Public Warehousing,GPC
Statement 20/06/2017 to 17/07/2017,Adults and Communities,Safetysignsup.Couk,11/07/2017,9.13,Printing - General,"Commercial Photography, Art, Graphics",GPC
Statement 20/06/2017 to 17/07/2017,Adults and Communities,Sainsburys S/mkt,27/06/2017,13.80,Display/Conservn/Exhibitions - Exhibitions,"Grocery Stores, Supermarkets",GPC
Statement 20/06/2017 to 17/07/2017,Adults and Communities,Sainsburys S/mkt,20/06/2017,149.54,Provisions - General,"Grocery Stores, Supermarkets",GPC
Statement 20/06/2017 to 17/07/2017,Adults and Communities,Sainsburys S/mkt,09/07/2017,15.25,Provisions - General,"Grocery Stores, Supermarkets",GPC
Statement 20/06/2017 to 17/07/2017,Adults and Communities,Sainsburys S/mkt,11/07/2017,14.95,Provisions - General,"Grocery Stores, Supermarkets",GPC
Statement 20/06/2017 to 17/07/2017,Adults and Communities,Sainsburys S/mkts,13/07/2017,15.00,Materials - General,"Grocery Stores, Supermarkets",GPC
Statement 20/06/2017 to 17/07/2017,Adults and Communities,Sainsburys S/mkts,06/07/2017,6.70,Provisions - General,"Grocery Stores, Supermarkets",GPC
Statement 20/06/2017 to 17/07/2017,Adults and Communities,Screencast-O-Matic.Com,04/07/2017,89.21,IT Equipment - General,"Computers, Computer Peripheral Equipment, Software",GPC
Statement 20/06/2017 to 17/07/2017,Adults and Communities,Screwfix Direct,28/06/2017,400.48,R & M of Buildings - General,"Building Materials, Lumber Stores",GPC
Statement 20/06/2017 to 17/07/2017,Adults and Communities,Screwfix Direct,30/06/2017,-2.99,R & M of Buildings - General,"Building Materials, Lumber Stores",GPC
Statement 20/06/2017 to 17/07/2017,Adults and Communities,Sensory Direct,21/06/2017,125.91,Materials - General,"Hobby, Toy, and Game Shops",GPC
Statement 20/06/2017 to 17/07/2017,Adults and Communities,Seton,11/07/2017,99.07,Other Equipment & Materials - General,Durable Goods Not Elsewhere Classified,GPC
Statement 20/06/2017 to 17/07/2017,Adults and Communities,Ship & Trades,20/06/2017,26.90,Conference - General,"Lodging-Hotels, Motels, Resorts",GPC
Statement 20/06/2017 to 17/07/2017,Adults and Communities,St Pancras Intl,23/06/2017,6.42,Other Expenditure - General,"Eating Places, Restaurants",GPC
Statement 20/06/2017 to 17/07/2017,Adults and Communities,Staffordshire County C,04/07/2017,12.00,Other Expenditure - General,Government Services-Not Elsewhere Classified,GPC
Statement 20/06/2017 to 17/07/2017,Adults and Communities,Staffordshire County C,04/07/2017,12.00,Other Expenditure - General,Government Services-Not Elsewhere Classified,GPC
Statement 20/06/2017 to 17/07/2017,Adults and Communities,Staffordshire County C,04/07/2017,12.00,Other Expenditure - General,Government Services-Not Elsewhere Classified,GPC
Statement 20/06/2017 to 17/07/2017,Adults and Communities,Staffordshire County C,04/07/2017,12.00,Other Expenditure - General,Government Services-Not Elsewhere Classified,GPC
Statement 20/06/2017 to 17/07/2017,Adults and Communities,Staffordshire County C,04/07/2017,12.00,Other Expenditure - General,Government Services-Not Elsewhere Classified,GPC
Statement 20/06/2017 to 17/07/2017,Adults and Communities,Staffordshire County C,04/07/2017,12.00,Other Expenditure - General,Government Services-Not Elsewhere Classified,GPC
Statement 20/06/2017 to 17/07/2017,Adults and Communities,Suk Retail Ltd,13/07/2017,3.02,Stationery - General,"Stationery, Office, and School Supply Stores",GPC
Statement 20/06/2017 to 17/07/2017,Adults and Communities,Sumup *hashim Taxi,13/07/2017,36.00,Casual/Essential - General,Taxicabs and Limousines,GPC
Statement 20/06/2017 to 17/07/2017,Adults and Communities,Surveymonkey,12/07/2017,21.67,IT Equipment - Licences,Continuity/Subscription Merchants,GPC
Statement 20/06/2017 to 17/07/2017,Adults and Communities,Tesco Store 2878,07/07/2017,6.50,Materials - General,"Grocery Stores, Supermarkets",GPC
Statement 20/06/2017 to 17/07/2017,Adults and Communities,Tesco Stores 5182,20/06/2017,38.39,Client/Volunteers - General,"Grocery Stores, Supermarkets",GPC
Statement 20/06/2017 to 17/07/2017,Adults and Communities,Tesco Stores 5182,07/07/2017,10.89,General Equipment - General,"Grocery Stores, Supermarkets",GPC
Statement 20/06/2017 to 17/07/2017,Adults and Communities,Tesco Stores 5182,23/06/2017,93.94,Provisions - General,"Grocery Stores, Supermarkets",GPC
Statement 20/06/2017 to 17/07/2017,Adults and Communities,Tesco Stores 5182,26/06/2017,155.95,Provisions - General,"Grocery Stores, Supermarkets",GPC
Statement 20/06/2017 to 17/07/2017,Adults and Communities,Tesco Stores 5182,30/06/2017,66.46,Provisions - General,"Grocery Stores, Supermarkets",GPC
Statement 20/06/2017 to 17/07/2017,Adults and Communities,Tesco Stores 5182,03/07/2017,97.07,Provisions - General,"Grocery Stores, Supermarkets",GPC
Statement 20/06/2017 to 17/07/2017,Adults and Communities,Tesco Stores 5182,05/07/2017,13.55,Provisions - General,"Grocery Stores, Supermarkets",GPC
Statement 20/06/2017 to 17/07/2017,Adults and Communities,Tesco Stores 5182,07/07/2017,83.34,Provisions - General,"Grocery Stores, Supermarkets",GPC
Statement 20/06/2017 to 17/07/2017,Adults and Communities,Tesco Stores 5182,10/07/2017,126.70,Provisions - General,"Grocery Stores, Supermarkets",GPC
Statement 20/06/2017 to 17/07/2017,Adults and Communities,Tesco Stores 5182,14/07/2017,83.11,Provisions - General,"Grocery Stores, Supermarkets",GPC
Statement 20/06/2017 to 17/07/2017,Adults and Communities,Tesco Stores 5182,14/07/2017,24.00,Provisions - General,"Grocery Stores, Supermarkets",GPC
Statement 20/06/2017 to 17/07/2017,Adults and Communities,Tesco Stores 6418,08/07/2017,11.18,Materials - General,"Grocery Stores, Supermarkets",GPC
Statement 20/06/2017 to 17/07/2017,Adults and Communities,Tesco-Seller_ist_1_2401,04/07/2017,8.33,Display/Conservn/Exhibitions - Exhibitions,Miscellaneous and Specialty Retail Stores,GPC
Statement 20/06/2017 to 17/07/2017,Adults and Communities,Tfg Copy Print,29/06/2017,45.00,Stationery - General,Miscellaneous Publishing and  Printing,GPC
Statement 20/06/2017 to 17/07/2017,Adults and Communities,Tfg Copy Print,12/07/2017,54.00,Stationery - General,Miscellaneous Publishing and  Printing,GPC
Statement 20/06/2017 to 17/07/2017,Adults and Communities,Tfh Special Needs,26/06/2017,149.01,Materials - General,"Hobby, Toy, and Game Shops",GPC
Statement 20/06/2017 to 17/07/2017,Adults and Communities,The Active Hands Company,26/06/2017,56.00,Operational Equipment - DDA,Miscellaneous and Specialty Retail Stores,GPC
Statement 20/06/2017 to 17/07/2017,Adults and Communities,The Fitzroy Hotel,13/07/2017,218.00,Subsistence - General,"Lodging-Hotels, Motels, Resorts",GPC
Statement 20/06/2017 to 17/07/2017,Adults and Communities,The National Trust,14/07/2017,19.13,Other Expenditure - General,Charitable and Social Service Organizations,GPC
Statement 20/06/2017 to 17/07/2017,Adults and Communities,The National Trust,14/07/2017,14.38,Other Expenditure - General,Charitable and Social Service Organizations,GPC
Statement 20/06/2017 to 17/07/2017,Adults and Communities,The Plant Man,05/07/2017,54.75,Other Services - General,"Lawn and Garden Supply Stores, Nurseries",GPC
Statement 20/06/2017 to 17/07/2017,Adults and Communities,Three-Billpay(Cc),12/07/2017,38.32,Other Expenditure - General,Telecommunication Service Including Local and Long,GPC
Statement 20/06/2017 to 17/07/2017,Adults and Communities,Three-Billpay(Cc),12/07/2017,21.65,Schools Agency staff - Support Staff,Telecommunication Service Including Local and Long,GPC
Statement 20/06/2017 to 17/07/2017,Adults and Communities,Trainline,26/06/2017,28.25,Casual/Essential - General,Passenger Railways,GPC
Statement 20/06/2017 to 17/07/2017,Adults and Communities,Trainline,04/07/2017,13.01,Casual/Essential - General,Passenger Railways,GPC
Statement 20/06/2017 to 17/07/2017,Adults and Communities,Trainline,04/07/2017,213.13,Public Transport -  Staff - General,Passenger Railways,GPC
Statement 20/06/2017 to 17/07/2017,Adults and Communities,Trainline,06/07/2017,19.23,Public Transport -  Staff - General,Passenger Railways,GPC
Statement 20/06/2017 to 17/07/2017,Adults and Communities,Tvlicensing.Co.Uk,30/06/2017,147.00,Schools Agency staff - Teaching Staff,"Management, Consulting and Public Relations Servic",GPC
Statement 20/06/2017 to 17/07/2017,Adults and Communities,Uk Shopping Mall Ltd,12/07/2017,5.17,Other Equipment & Materials - General,"Artist Supply Stores, Craft Shops",GPC
Statement 20/06/2017 to 17/07/2017,Adults and Communities,Villagio,21/06/2017,45.50,Conference - General,"Eating Places, Restaurants",GPC
Statement 20/06/2017 to 17/07/2017,Adults and Communities,Virgintrainsec Pbo Stn,12/07/2017,88.80,Casual/Essential - General,Passenger Railways,GPC
Statement 20/06/2017 to 17/07/2017,Adults and Communities,Virgintrainsec Pbo Stn,20/06/2017,139.50,Public Transport -  Staff - General,Passenger Railways,GPC
Statement 20/06/2017 to 17/07/2017,Adults and Communities,Virgintrainsec Pbo Stn,10/07/2017,73.00,Public Transport -  Staff - General,Passenger Railways,GPC
Statement 20/06/2017 to 17/07/2017,Adults and Communities,W Boyes & Co Ltd Coalv,30/06/2017,8.47,Materials - General,Discount Stores,GPC
Statement 20/06/2017 to 17/07/2017,Adults and Communities,W Boyes & Co Ltd Coalv,13/07/2017,11.28,Other Equipment & Materials - General,Discount Stores,GPC
Statement 20/06/2017 to 17/07/2017,Adults and Communities,Wh Smith,04/07/2017,20.16,Newspapers & Periodicals - General,News Dealers and Newsstands,GPC
Statement 20/06/2017 to 17/07/2017,Adults and Communities,Wilko Retail Limit,30/06/2017,2.00,Cleaning Materials - General,Household Appliance Stores,GPC
Statement 20/06/2017 to 17/07/2017,Adults and Communities,Wilko Retail Limit,05/07/2017,2.00,Cleaning Materials - General,Household Appliance Stores,GPC
Statement 20/06/2017 to 17/07/2017,Adults and Communities,Wilko Retail Limit,14/07/2017,24.00,General Equipment - General,Household Appliance Stores,GPC
Statement 20/06/2017 to 17/07/2017,Adults and Communities,Wilko Retail Limit,20/06/2017,42.50,Materials - General,Household Appliance Stores,GPC
Statement 20/06/2017 to 17/07/2017,Adults and Communities,Wilko Retail Limit,22/06/2017,35.42,Materials - General,Household Appliance Stores,GPC
Statement 20/06/2017 to 17/07/2017,Adults and Communities,Wilko Retail Limit,28/06/2017,12.79,Materials - General,Household Appliance Stores,GPC
Statement 20/06/2017 to 17/07/2017,Adults and Communities,Wilko Retail Limit,04/07/2017,35.55,Materials - General,Household Appliance Stores,GPC
Statement 20/06/2017 to 17/07/2017,Adults and Communities,Wilko Retail Limit,12/07/2017,5.42,Materials - General,Household Appliance Stores,GPC
Statement 20/06/2017 to 17/07/2017,Adults and Communities,Wilko Retail Limit,21/06/2017,8.00,Other Equipment & Materials - General,Household Appliance Stores,GPC
Statement 20/06/2017 to 17/07/2017,Adults and Communities,Wm Morrison 054,22/06/2017,11.87,Materials - General,"Grocery Stores, Supermarkets",GPC
Statement 20/06/2017 to 17/07/2017,Adults and Communities,Wm Morrison 054,23/06/2017,3.75,Materials - General,"Grocery Stores, Supermarkets",GPC
Statement 20/06/2017 to 17/07/2017,Adults and Communities,Wm Morrison 054,29/06/2017,18.28,Materials - General,"Grocery Stores, Supermarkets",GPC
Statement 20/06/2017 to 17/07/2017,Adults and Communities,Wm Morrison 054,30/06/2017,2.40,Materials - General,"Grocery Stores, Supermarkets",GPC
Statement 20/06/2017 to 17/07/2017,Adults and Communities,Wm Morrison 054,02/07/2017,7.35,Materials - General,"Grocery Stores, Supermarkets",GPC
Statement 20/06/2017 to 17/07/2017,Adults and Communities,Wm Morrison 054,06/07/2017,10.25,Materials - General,"Grocery Stores, Supermarkets",GPC
Statement 20/06/2017 to 17/07/2017,Adults and Communities,Wm Morrison 054,07/07/2017,7.56,Materials - General,"Grocery Stores, Supermarkets",GPC
Statement 20/06/2017 to 17/07/2017,Adults and Communities,Wm Morrison 054,09/07/2017,2.50,Materials - General,"Grocery Stores, Supermarkets",GPC
Statement 20/06/2017 to 17/07/2017,Adults and Communities,Wm Morrison 054,09/07/2017,58.06,Materials - General,"Grocery Stores, Supermarkets",GPC
Statement 20/06/2017 to 17/07/2017,Adults and Communities,Wm Morrison 054,13/07/2017,19.75,Materials - General,"Grocery Stores, Supermarkets",GPC
Statement 20/06/2017 to 17/07/2017,Adults and Communities,Wm Morrison 054,14/07/2017,5.42,Materials - General,"Grocery Stores, Supermarkets",GPC
Statement 20/06/2017 to 17/07/2017,Adults and Communities,Wm Morrison 054,02/07/2017,1.67,Other Expenditure - General,"Grocery Stores, Supermarkets",GPC
Statement 20/06/2017 to 17/07/2017,Adults and Communities,Wm Morrison 054,07/07/2017,1.00,Other Expenditure - General,"Grocery Stores, Supermarkets",GPC
Statement 20/06/2017 to 17/07/2017,Adults and Communities,Wm Morrison 054,19/06/2017,52.54,Provisions - General,"Grocery Stores, Supermarkets",GPC
Statement 20/06/2017 to 17/07/2017,Adults and Communities,Wm Morrison 054,24/06/2017,63.92,Provisions - General,"Grocery Stores, Supermarkets",GPC
Statement 20/06/2017 to 17/07/2017,Adults and Communities,Wm Morrison 054,29/06/2017,77.10,Provisions - General,"Grocery Stores, Supermarkets",GPC
Statement 20/06/2017 to 17/07/2017,Adults and Communities,Wm Morrison 054,15/07/2017,131.10,Provisions - General,"Grocery Stores, Supermarkets",GPC
Statement 20/06/2017 to 17/07/2017,Adults and Communities,Women Like Us,05/07/2017,120.00,Recruitment Advertising - General,"Employment Agencies, Temporary Help Services",GPC
Statement 20/06/2017 to 17/07/2017,Adults and Communities,Wp-Warwickshire Co,20/06/2017,10.65,Other Expenditure - General,Government Services-Not Elsewhere Classified,GPC
Statement 20/06/2017 to 17/07/2017,Adults and Communities,Www.Alzproducts.Co.Uk,12/07/2017,120.00,Other Equipment & Materials - General,Orthopedic Goods-Artificial Limb Stores,GPC
Statement 20/06/2017 to 17/07/2017,Adults and Communities,Www.Alzproducts.Co.Uk,12/07/2017,120.00,Other Equipment & Materials - General,Orthopedic Goods-Artificial Limb Stores,GPC
Statement 20/06/2017 to 17/07/2017,Adults and Communities,Www.Argos.Co.Uk,21/06/2017,43.94,Materials - General,Discount Stores,GPC
Statement 20/06/2017 to 17/07/2017,Adults and Communities,Www.Hawkin.Com,04/07/2017,62.26,Display/Conservn/Exhibitions - Exhibitions,"Hobby, Toy, and Game Shops",GPC
Statement 20/06/2017 to 17/07/2017,Adults and Communities,Www.Homecraftsdirect.Co.,11/07/2017,14.44,Materials - General,"Artist Supply Stores, Craft Shops",GPC
Statement 20/06/2017 to 17/07/2017,Adults and Communities,Www.Houseofmarbles.Com,04/07/2017,77.00,Display/Conservn/Exhibitions - Exhibitions,"Artist Supply Stores, Craft Shops",GPC
Statement 20/06/2017 to 17/07/2017,Adults and Communities,Www.Houseofmarbles.Com,05/07/2017,-12.49,Display/Conservn/Exhibitions - Exhibitions,"Artist Supply Stores, Craft Shops",GPC
Statement 20/06/2017 to 17/07/2017,Adults and Communities,Www.Neopost.Co.Uk,30/06/2017,102.00,Postal Services - General,"Stationary, Office Supplies, Printing and Writing",GPC
Statement 20/06/2017 to 17/07/2017,Adults and Communities,Www.Neopost.Co.Uk,05/07/2017,255.00,Postal Services - General,"Stationary, Office Supplies, Printing and Writing",GPC
Statement 20/06/2017 to 17/07/2017,Adults and Communities,Www.Sja.Org.Uk,20/06/2017,138.00,Other Expenditure - General,Charitable and Social Service Organizations,GPC
Statement 20/06/2017 to 17/07/2017,Adults and Communities,Www.Sja.Org.Uk,04/07/2017,35.00,Other Services - General,Charitable and Social Service Organizations,GPC
Statement 20/06/2017 to 17/07/2017,Adults and Communities,Www.Talktalkbusiness.C,27/06/2017,23.50,Telephones - General,Telecommunication Equipment Including Telephone Sa,GPC
Statement 20/06/2017 to 17/07/2017,Adults and Communities,Www.Trentbarton.Co.Uk,21/06/2017,71.40,Other Expenditure - General,"Bus Lines, Charters, Tour Buses",GPC
Statement 20/06/2017 to 17/07/2017,Adults and Communities,Www.Zen.Co.Uk,28/06/2017,34.76,Telephones - General,Computer Network/Information Services,GPC
Statement 20/06/2017 to 17/07/2017,C&YPS-Non Delegated,Adhd Solutions Cic,26/06/2017,40.00,Other Transfer Payments - Sector 17- Other,Charitable and Social Service Organizations,GPC
Statement 20/06/2017 to 17/07/2017,C&YPS-Non Delegated,Aldi,19/06/2017,56.78,Materials - General,"Grocery Stores, Supermarkets",GPC
Statement 20/06/2017 to 17/07/2017,C&YPS-Non Delegated,Aldi,21/06/2017,7.94,Materials - General,"Grocery Stores, Supermarkets",GPC
Statement 20/06/2017 to 17/07/2017,C&YPS-Non Delegated,Aldi,22/06/2017,47.68,Materials - General,"Grocery Stores, Supermarkets",GPC
Statement 20/06/2017 to 17/07/2017,C&YPS-Non Delegated,Aldi,26/06/2017,123.56,Materials - General,"Grocery Stores, Supermarkets",GPC
Statement 20/06/2017 to 17/07/2017,C&YPS-Non Delegated,Aldi,26/06/2017,10.32,Materials - General,"Grocery Stores, Supermarkets",GPC
Statement 20/06/2017 to 17/07/2017,C&YPS-Non Delegated,Aldi,29/06/2017,65.30,Materials - General,"Grocery Stores, Supermarkets",GPC
Statement 20/06/2017 to 17/07/2017,C&YPS-Non Delegated,Aldi,04/07/2017,8.28,Materials - General,"Grocery Stores, Supermarkets",GPC
Statement 20/06/2017 to 17/07/2017,C&YPS-Non Delegated,Aldi,05/07/2017,6.08,Materials - General,"Grocery Stores, Supermarkets",GPC
Statement 20/06/2017 to 17/07/2017,C&YPS-Non Delegated,Aldi,05/07/2017,154.04,Materials - General,"Grocery Stores, Supermarkets",GPC
Statement 20/06/2017 to 17/07/2017,C&YPS-Non Delegated,Aldi,09/07/2017,24.70,Materials - General,"Grocery Stores, Supermarkets",GPC
Statement 20/06/2017 to 17/07/2017,C&YPS-Non Delegated,Aldi,10/07/2017,61.41,Materials - General,"Grocery Stores, Supermarkets",GPC
Statement 20/06/2017 to 17/07/2017,C&YPS-Non Delegated,Aldi,12/07/2017,58.53,Materials - General,"Grocery Stores, Supermarkets",GPC
Statement 20/06/2017 to 17/07/2017,C&YPS-Non Delegated,Aldi,14/07/2017,14.76,Materials - General,"Grocery Stores, Supermarkets",GPC
Statement 20/06/2017 to 17/07/2017,C&YPS-Non Delegated,Aldi,21/06/2017,57.12,Other Transfer Payments - Leaving Care Grants,"Grocery Stores, Supermarkets",GPC
Statement 20/06/2017 to 17/07/2017,C&YPS-Non Delegated,Aldi,28/06/2017,24.37,Other Transfer Payments - Leaving Care Grants,"Grocery Stores, Supermarkets",GPC
Statement 20/06/2017 to 17/07/2017,C&YPS-Non Delegated,Aldi,03/07/2017,11.98,Other Transfer Payments - Leaving Care Grants,"Grocery Stores, Supermarkets",GPC
Statement 20/06/2017 to 17/07/2017,C&YPS-Non Delegated,Aldi,26/06/2017,7.15,Other Transfer Payments - Section 23 Grants,"Grocery Stores, Supermarkets",GPC
Statement 20/06/2017 to 17/07/2017,C&YPS-Non Delegated,Allpay Ltd,03/07/2017,218.64,Other Transfer Payments - Section 23 Grants,Charitable and Social Service Organizations,GPC
Statement 20/06/2017 to 17/07/2017,C&YPS-Non Delegated,Amazon Prime,04/07/2017,-7.99,Other Equipment & Materials - General,Continuity/Subscription Merchants,GPC
Statement 20/06/2017 to 17/07/2017,C&YPS-Non Delegated,Amazon UK Marketplace,26/06/2017,31.94,Books - General,Book Stores,GPC
Statement 20/06/2017 to 17/07/2017,C&YPS-Non Delegated,Amazon UK Marketplace,27/06/2017,35.58,Books - General,Miscellaneous and Specialty Retail Stores,GPC
Statement 20/06/2017 to 17/07/2017,C&YPS-Non Delegated,Amazon UK Marketplace,29/06/2017,10.98,Books - General,Book Stores,GPC
Statement 20/06/2017 to 17/07/2017,C&YPS-Non Delegated,Amazon UK Marketplace,29/06/2017,52.95,Books - General,Miscellaneous and Specialty Retail Stores,GPC
Statement 20/06/2017 to 17/07/2017,C&YPS-Non Delegated,Amazon UK Marketplace,02/07/2017,24.96,Books - General,Book Stores,GPC
Statement 20/06/2017 to 17/07/2017,C&YPS-Non Delegated,Amazon UK Marketplace,21/06/2017,74.68,IT Equipment - General,Miscellaneous and Specialty Retail Stores,GPC
Statement 20/06/2017 to 17/07/2017,C&YPS-Non Delegated,Amazon UK Marketplace,28/06/2017,6.97,Materials - General,Miscellaneous and Specialty Retail Stores,GPC
Statement 20/06/2017 to 17/07/2017,C&YPS-Non Delegated,Amazon UK Marketplace,28/06/2017,40.54,Materials - General,Miscellaneous and Specialty Retail Stores,GPC
Statement 20/06/2017 to 17/07/2017,C&YPS-Non Delegated,Amazon UK Marketplace,29/06/2017,25.16,Materials - General,Miscellaneous and Specialty Retail Stores,GPC
Statement 20/06/2017 to 17/07/2017,C&YPS-Non Delegated,Amazon UK Marketplace,30/06/2017,46.49,Materials - General,Miscellaneous and Specialty Retail Stores,GPC
Statement 20/06/2017 to 17/07/2017,C&YPS-Non Delegated,Amazon UK Marketplace,30/06/2017,22.87,Materials - General,Miscellaneous and Specialty Retail Stores,GPC
Statement 20/06/2017 to 17/07/2017,C&YPS-Non Delegated,Amazon UK Marketplace,02/07/2017,27.93,Materials - General,Miscellaneous and Specialty Retail Stores,GPC
Statement 20/06/2017 to 17/07/2017,C&YPS-Non Delegated,Amazon UK Marketplace,20/06/2017,12.76,Operational Equipment - General,Miscellaneous and Specialty Retail Stores,GPC
Statement 20/06/2017 to 17/07/2017,C&YPS-Non Delegated,Amazon UK Marketplace,10/07/2017,35.79,Operational Equipment - General,Miscellaneous and Specialty Retail Stores,GPC
Statement 20/06/2017 to 17/07/2017,C&YPS-Non Delegated,Amazon UK Marketplace,24/06/2017,10.43,Other Equipment & Materials - General,Book Stores,GPC
Statement 20/06/2017 to 17/07/2017,C&YPS-Non Delegated,Amazon UK Marketplace,26/06/2017,13.45,Other Equipment & Materials - General,Miscellaneous and Specialty Retail Stores,GPC
Statement 20/06/2017 to 17/07/2017,C&YPS-Non Delegated,Amazon UK Marketplace,04/07/2017,1.99,Other Equipment & Materials - General,Miscellaneous and Specialty Retail Stores,GPC
Statement 20/06/2017 to 17/07/2017,C&YPS-Non Delegated,Amazon UK Marketplace,05/07/2017,1.66,Other Equipment & Materials - General,Book Stores,GPC
Statement 20/06/2017 to 17/07/2017,C&YPS-Non Delegated,Amazon UK Marketplace,05/07/2017,4.04,Other Equipment & Materials - General,Miscellaneous and Specialty Retail Stores,GPC
Statement 20/06/2017 to 17/07/2017,C&YPS-Non Delegated,Amazon UK Marketplace,04/07/2017,10.50,Other Transfer Payments - General,Miscellaneous and Specialty Retail Stores,GPC
Statement 20/06/2017 to 17/07/2017,C&YPS-Non Delegated,Amazon UK Marketplace,05/07/2017,12.79,Other Transfer Payments - General,Book Stores,GPC
Statement 20/06/2017 to 17/07/2017,C&YPS-Non Delegated,Amazon UK Marketplace,06/07/2017,4.39,Other Transfer Payments - General,Book Stores,GPC
Statement 20/06/2017 to 17/07/2017,C&YPS-Non Delegated,Amazon UK Marketplace,06/07/2017,6.47,Other Transfer Payments - General,Book Stores,GPC
Statement 20/06/2017 to 17/07/2017,C&YPS-Non Delegated,Amazon UK Marketplace,06/07/2017,34.47,Other Transfer Payments - General,Miscellaneous and Specialty Retail Stores,GPC
Statement 20/06/2017 to 17/07/2017,C&YPS-Non Delegated,Amazon UK Marketplace,06/07/2017,3.23,Other Transfer Payments - General,Miscellaneous and Specialty Retail Stores,GPC
Statement 20/06/2017 to 17/07/2017,C&YPS-Non Delegated,Amazon UK Marketplace,23/06/2017,24.99,Provisions - General,Miscellaneous and Specialty Retail Stores,GPC
Statement 20/06/2017 to 17/07/2017,C&YPS-Non Delegated,Amazon UK Marketplace,23/06/2017,34.98,Provisions - General,Miscellaneous and Specialty Retail Stores,GPC
Statement 20/06/2017 to 17/07/2017,C&YPS-Non Delegated,Amazon UK Marketplace,26/06/2017,34.99,Provisions - General,Miscellaneous and Specialty Retail Stores,GPC
Statement 20/06/2017 to 17/07/2017,C&YPS-Non Delegated,Amazon UK Marketplace,07/07/2017,84.98,Provisions - General,Miscellaneous and Specialty Retail Stores,GPC
Statement 20/06/2017 to 17/07/2017,C&YPS-Non Delegated,Amazon UK Marketplace,13/07/2017,1.50,Provisions - General,Book Stores,GPC
Statement 20/06/2017 to 17/07/2017,C&YPS-Non Delegated,Amazon UK Marketplace,14/07/2017,69.98,Provisions - General,Book Stores,GPC
Statement 20/06/2017 to 17/07/2017,C&YPS-Non Delegated,Amazon UK Marketplace,22/06/2017,13.73,Stationery - General,Miscellaneous and Specialty Retail Stores,GPC
Statement 20/06/2017 to 17/07/2017,C&YPS-Non Delegated,Amazon UK Marketplace,27/06/2017,30.70,Stationery - General,Miscellaneous and Specialty Retail Stores,GPC
Statement 20/06/2017 to 17/07/2017,C&YPS-Non Delegated,Amazon UK Marketplace,05/07/2017,7.21,Stationery - General,Book Stores,GPC
Statement 20/06/2017 to 17/07/2017,C&YPS-Non Delegated,Amazon UK Marketplace,11/07/2017,10.67,Stationery - General,Book Stores,GPC
Statement 20/06/2017 to 17/07/2017,C&YPS-Non Delegated,Amazon UK Marketplace,13/07/2017,7.49,Stationery - General,Book Stores,GPC
Statement 20/06/2017 to 17/07/2017,C&YPS-Non Delegated,Amazon UK Marketplace,13/07/2017,14.13,Stationery - General,Miscellaneous and Specialty Retail Stores,GPC
Statement 20/06/2017 to 17/07/2017,C&YPS-Non Delegated,Amazon UK Retail,03/07/2017,13.95,General Equipment - General,Direct Marketers - Other,GPC
Statement 20/06/2017 to 17/07/2017,C&YPS-Non Delegated,Amazon UK Retail,19/06/2017,12.28,Operational Equipment - General,Direct Marketers - Other,GPC
Statement 20/06/2017 to 17/07/2017,C&YPS-Non Delegated,Amazon UK Retail,26/06/2017,24.05,Other Equipment & Materials - General,Direct Marketers - Other,GPC
Statement 20/06/2017 to 17/07/2017,C&YPS-Non Delegated,Amazon UK Retail,04/07/2017,20.21,Other Equipment & Materials - General,Direct Marketers - Other,GPC
Statement 20/06/2017 to 17/07/2017,C&YPS-Non Delegated,Amazon UK Retail,21/06/2017,15.38,Other Expenditure - General,Direct Marketers - Other,GPC
Statement 20/06/2017 to 17/07/2017,C&YPS-Non Delegated,Amazon UK Retail,04/07/2017,15.38,Other Expenditure - General,Direct Marketers - Other,GPC
Statement 20/06/2017 to 17/07/2017,C&YPS-Non Delegated,Amazon UK Retail,23/06/2017,42.37,Provisions - General,Direct Marketers - Other,GPC
Statement 20/06/2017 to 17/07/2017,C&YPS-Non Delegated,Amazon UK Retail,29/06/2017,14.59,Provisions - General,Direct Marketers - Other,GPC
Statement 20/06/2017 to 17/07/2017,C&YPS-Non Delegated,Amazon UK Retail,04/07/2017,29.16,Provisions - General,Direct Marketers - Other,GPC
Statement 20/06/2017 to 17/07/2017,C&YPS-Non Delegated,Amazon UK Retail,26/06/2017,7.89,Stationery - General,Direct Marketers - Other,GPC
Statement 20/06/2017 to 17/07/2017,C&YPS-Non Delegated,Amazon UK Retail Amazon.C,28/06/2017,18.35,Materials - General,Miscellaneous and Specialty Retail Stores,GPC
Statement 20/06/2017 to 17/07/2017,C&YPS-Non Delegated,Amazon UK Retail Amazon.C,26/06/2017,33.12,Other Equipment & Materials - General,Miscellaneous and Specialty Retail Stores,GPC
Statement 20/06/2017 to 17/07/2017,C&YPS-Non Delegated,Amazon.Co.Uk,03/07/2017,16.14,Materials - General,Miscellaneous and Specialty Retail Stores,GPC
Statement 20/06/2017 to 17/07/2017,C&YPS-Non Delegated,Amazon.Co.Uk,21/06/2017,34.08,Other Equipment & Materials - General,Miscellaneous and Specialty Retail Stores,GPC
Statement 20/06/2017 to 17/07/2017,C&YPS-Non Delegated,Amazon.Co.Uk,27/06/2017,27.85,Other Equipment & Materials - General,Miscellaneous and Specialty Retail Stores,GPC
Statement 20/06/2017 to 17/07/2017,C&YPS-Non Delegated,Amazon.Co.Uk,04/07/2017,7.50,Other Equipment & Materials - General,Miscellaneous and Specialty Retail Stores,GPC
Statement 20/06/2017 to 17/07/2017,C&YPS-Non Delegated,Amazon.Co.Uk,13/07/2017,8.91,Other Transfer Payments - Section 23 Grants,Miscellaneous and Specialty Retail Stores,GPC
Statement 20/06/2017 to 17/07/2017,C&YPS-Non Delegated,Amazon.Co.Uk,12/07/2017,5.91,Provisions - General,Miscellaneous and Specialty Retail Stores,GPC
Statement 20/06/2017 to 17/07/2017,C&YPS-Non Delegated,Amazon.Co.Uk,14/07/2017,4.16,Provisions - General,Miscellaneous and Specialty Retail Stores,GPC
Statement 20/06/2017 to 17/07/2017,C&YPS-Non Delegated,Amazon.Co.Uk,11/07/2017,20.20,Stationery - General,Miscellaneous and Specialty Retail Stores,GPC
Statement 20/06/2017 to 17/07/2017,C&YPS-Non Delegated,Amz*amazon.Co.Uk,01/07/2017,-15.38,Other Expenditure - General,Direct Marketers - Other,GPC
Statement 20/06/2017 to 17/07/2017,C&YPS-Non Delegated,Anglian Water,27/06/2017,15.00,Other Transfer Payments - Section 24,"Utilities-Electric, Gas, Sanitary, Water",GPC
Statement 20/06/2017 to 17/07/2017,C&YPS-Non Delegated,Anyvan,13/07/2017,119.00,Other Transfer Payments - Section 24,"Motor Freight Carriers, and Trucking",GPC
Statement 20/06/2017 to 17/07/2017,C&YPS-Non Delegated,Ao Retail Limited,30/06/2017,203.33,Other Transfer Payments - Leaving Care Grants,Household Appliance Stores,GPC
Statement 20/06/2017 to 17/07/2017,C&YPS-Non Delegated,Argos Ltd,21/06/2017,22.99,General Equipment - General,Discount Stores,GPC
Statement 20/06/2017 to 17/07/2017,C&YPS-Non Delegated,Argos Ltd,21/06/2017,2.00,General Equipment - General,Discount Stores,GPC
Statement 20/06/2017 to 17/07/2017,C&YPS-Non Delegated,Argos Ltd,04/07/2017,14.99,General Equipment - General,Discount Stores,GPC
Statement 20/06/2017 to 17/07/2017,C&YPS-Non Delegated,Argos Ltd,19/06/2017,219.99,Other Transfer Payments - Leaving Care Grants,Discount Stores,GPC
Statement 20/06/2017 to 17/07/2017,C&YPS-Non Delegated,Argos Ltd,21/06/2017,405.92,Other Transfer Payments - Leaving Care Grants,Discount Stores,GPC
Statement 20/06/2017 to 17/07/2017,C&YPS-Non Delegated,Argos Ltd,22/06/2017,14.99,Other Transfer Payments - Leaving Care Grants,Discount Stores,GPC
Statement 20/06/2017 to 17/07/2017,C&YPS-Non Delegated,Argos Ltd,27/06/2017,79.93,Other Transfer Payments - Leaving Care Grants,Discount Stores,GPC
Statement 20/06/2017 to 17/07/2017,C&YPS-Non Delegated,Argos Ltd,27/06/2017,17.99,Other Transfer Payments - Leaving Care Grants,Discount Stores,GPC
Statement 20/06/2017 to 17/07/2017,C&YPS-Non Delegated,Argos Ltd,27/06/2017,30.00,Other Transfer Payments - Leaving Care Grants,Discount Stores,GPC
Statement 20/06/2017 to 17/07/2017,C&YPS-Non Delegated,Argos Ltd,28/06/2017,120.44,Other Transfer Payments - Leaving Care Grants,Discount Stores,GPC
Statement 20/06/2017 to 17/07/2017,C&YPS-Non Delegated,Argos Ltd,11/07/2017,86.97,Other Transfer Payments - Leaving Care Grants,Discount Stores,GPC
Statement 20/06/2017 to 17/07/2017,C&YPS-Non Delegated,Argos Ltd,21/06/2017,80.96,Provisions - General,Discount Stores,GPC
Statement 20/06/2017 to 17/07/2017,C&YPS-Non Delegated,Argos Retail Group,27/06/2017,37.49,Other Equipment & Materials - General,Discount Stores,GPC
Statement 20/06/2017 to 17/07/2017,C&YPS-Non Delegated,Argos Retail Group,11/07/2017,19.99,Other Transfer Payments - Sector 17- Other,Discount Stores,GPC
Statement 20/06/2017 to 17/07/2017,C&YPS-Non Delegated,Asda Home Shopping,05/07/2017,59.63,Other Equipment & Materials - General,"Grocery Stores, Supermarkets",GPC
Statement 20/06/2017 to 17/07/2017,C&YPS-Non Delegated,Asda Stores 4798,03/07/2017,1.67,Other Transfer Payments - Section 23 Grants,"Grocery Stores, Supermarkets",GPC
Statement 20/06/2017 to 17/07/2017,C&YPS-Non Delegated,Asda Superstore,03/07/2017,14.19,General Equipment - General,"Grocery Stores, Supermarkets",GPC
Statement 20/06/2017 to 17/07/2017,C&YPS-Non Delegated,Asda Superstore,30/06/2017,14.79,Materials - General,"Grocery Stores, Supermarkets",GPC
Statement 20/06/2017 to 17/07/2017,C&YPS-Non Delegated,Asda Superstore,03/07/2017,111.50,Other Transfer Payments - Leaving Care Grants,"Grocery Stores, Supermarkets",GPC
Statement 20/06/2017 to 17/07/2017,C&YPS-Non Delegated,Asda Superstore,04/07/2017,200.00,Other Transfer Payments - Leaving Care Grants,"Grocery Stores, Supermarkets",GPC
Statement 20/06/2017 to 17/07/2017,C&YPS-Non Delegated,Avangate*videosoftdev.,28/06/2017,10.18,IT Equipment - General,"Gift, Card, Novelty, and Souvenir Shops",GPC
Statement 20/06/2017 to 17/07/2017,C&YPS-Non Delegated,B & Q 1012,19/06/2017,120.83,Other Equipment & Materials - General,"Building Materials, Lumber Stores",GPC
Statement 20/06/2017 to 17/07/2017,C&YPS-Non Delegated,B & Q 1012,19/06/2017,24.17,Other Equipment & Materials - General,"Building Materials, Lumber Stores",GPC
Statement 20/06/2017 to 17/07/2017,C&YPS-Non Delegated,B & Q 1012,19/06/2017,72.51,Other Equipment & Materials - General,"Building Materials, Lumber Stores",GPC
Statement 20/06/2017 to 17/07/2017,C&YPS-Non Delegated,B&m Retail,22/06/2017,28.35,Materials - General,Discount Stores,GPC
Statement 20/06/2017 to 17/07/2017,C&YPS-Non Delegated,B&m Retail,22/06/2017,14.33,Materials - General,Discount Stores,GPC
Statement 20/06/2017 to 17/07/2017,C&YPS-Non Delegated,B&m Retail,03/07/2017,11.50,Materials - General,Discount Stores,GPC
Statement 20/06/2017 to 17/07/2017,C&YPS-Non Delegated,B&m Retail,07/07/2017,73.97,Materials - General,Discount Stores,GPC
Statement 20/06/2017 to 17/07/2017,C&YPS-Non Delegated,B&m Retail Ltd,30/06/2017,23.94,Materials - General,Discount Stores,GPC
Statement 20/06/2017 to 17/07/2017,C&YPS-Non Delegated,B&m Retail Ltd,21/06/2017,15.44,Other Equipment & Materials - General,Discount Stores,GPC
Statement 20/06/2017 to 17/07/2017,C&YPS-Non Delegated,B&m Retail Ltd,05/07/2017,35.92,Other Equipment & Materials - General,Discount Stores,GPC
Statement 20/06/2017 to 17/07/2017,C&YPS-Non Delegated,B&m Retail Ltd,03/07/2017,48.29,Other Transfer Payments - Leaving Care Grants,Discount Stores,GPC
Statement 20/06/2017 to 17/07/2017,C&YPS-Non Delegated,B&m Retail Ltd,11/07/2017,82.16,Provisions - General,Discount Stores,GPC
Statement 20/06/2017 to 17/07/2017,C&YPS-Non Delegated,B&q Direct,22/06/2017,116.32,Provisions - General,"Building Materials, Lumber Stores",GPC
Statement 20/06/2017 to 17/07/2017,C&YPS-Non Delegated,Baker Ross Ltd,13/07/2017,165.11,Other Equipment & Materials - General,"Artist Supply Stores, Craft Shops",GPC
Statement 20/06/2017 to 17/07/2017,C&YPS-Non Delegated,Best Western Royal Bea,11/07/2017,65.00,Other Expenditure - Assist/Conts to Schemes,"Lodging-Hotels, Motels, Resorts",GPC
Statement 20/06/2017 to 17/07/2017,C&YPS-Non Delegated,Best Western Royal Bea,13/07/2017,7.92,Other Expenditure - Assist/Conts to Schemes,"Lodging-Hotels, Motels, Resorts",GPC
Statement 20/06/2017 to 17/07/2017,C&YPS-Non Delegated,Bt Bill Payment 2,27/06/2017,75.10,Telephones - General,Telecommunication Equipment Including Telephone Sa,GPC
Statement 20/06/2017 to 17/07/2017,C&YPS-Non Delegated,Bt Bill Payment 2,27/06/2017,56.37,Telephones - General,Telecommunication Equipment Including Telephone Sa,GPC
Statement 20/06/2017 to 17/07/2017,C&YPS-Non Delegated,Bt Bill Payment 2,05/07/2017,89.10,Telephones - General,Telecommunication Equipment Including Telephone Sa,GPC
Statement 20/06/2017 to 17/07/2017,C&YPS-Non Delegated,Bt Bill Payment 2,10/07/2017,142.20,Telephones - General,Telecommunication Equipment Including Telephone Sa,GPC
Statement 20/06/2017 to 17/07/2017,C&YPS-Non Delegated,Bt Bill Payment 2,10/07/2017,75.10,Telephones - General,Telecommunication Equipment Including Telephone Sa,GPC
Statement 20/06/2017 to 17/07/2017,C&YPS-Non Delegated,Bt Bill Payment 2,10/07/2017,57.51,Telephones - General,Telecommunication Equipment Including Telephone Sa,GPC
Statement 20/06/2017 to 17/07/2017,C&YPS-Non Delegated,Bt Bill Payment 2,12/07/2017,71.10,Telephones - General,Telecommunication Equipment Including Telephone Sa,GPC
Statement 20/06/2017 to 17/07/2017,C&YPS-Non Delegated,Bt Bill Payment 2,12/07/2017,55.89,Telephones - General,Telecommunication Equipment Including Telephone Sa,GPC
Statement 20/06/2017 to 17/07/2017,C&YPS-Non Delegated,Bt Bill Payment 2,13/07/2017,55.89,Telephones - General,Telecommunication Equipment Including Telephone Sa,GPC
Statement 20/06/2017 to 17/07/2017,C&YPS-Non Delegated,Burton Retail,03/07/2017,20.05,Materials - General,Men's And Women's Clothing Stores,GPC
Statement 20/06/2017 to 17/07/2017,C&YPS-Non Delegated,Central Eng Coop,29/06/2017,9.99,General Equipment - General,Department Stores,GPC
Statement 20/06/2017 to 17/07/2017,C&YPS-Non Delegated,Central Eng Coop,06/07/2017,7.08,General Equipment - General,Department Stores,GPC
Statement 20/06/2017 to 17/07/2017,C&YPS-Non Delegated,Central Eng Coop,20/06/2017,1.67,Other Equipment & Materials - General,Department Stores,GPC
Statement 20/06/2017 to 17/07/2017,C&YPS-Non Delegated,Central Eng Coop,06/07/2017,9.29,Other Equipment & Materials - General,Department Stores,GPC
Statement 20/06/2017 to 17/07/2017,C&YPS-Non Delegated,Central Eng Coop,23/06/2017,2.50,Other Transfer Payments - Section 24,Department Stores,GPC
Statement 20/06/2017 to 17/07/2017,C&YPS-Non Delegated,Central Eng Coop R,20/06/2017,40.00,Other Transfer Payments - Section 24,"Grocery Stores, Supermarkets",GPC
Statement 20/06/2017 to 17/07/2017,C&YPS-Non Delegated,Charnwood Bc Moto,06/07/2017,357.70,Other Transfer Payments - Section 23 Grants,Government Services-Not Elsewhere Classified,GPC
Statement 20/06/2017 to 17/07/2017,C&YPS-Non Delegated,City Self Drive/odeon,30/06/2017,266.67,Other Expenditure - Assist/Conts to Schemes,Automobile Rental Agency,GPC
Statement 20/06/2017 to 17/07/2017,C&YPS-Non Delegated,Co-Op Group 070409,28/06/2017,20.00,Other Transfer Payments - Leaving Care Grants,"Grocery Stores, Supermarkets",GPC
Statement 20/06/2017 to 17/07/2017,C&YPS-Non Delegated,Copt Oak,10/07/2017,27.35,Other Transfer Payments - Section 23 Grants,"Drinking Places (Alcoholic Beverages)-Bars, Tavern",GPC
Statement 20/06/2017 to 17/07/2017,C&YPS-Non Delegated,Costa Coalville,20/06/2017,6.70,Other Expenditure - General,Fast-Food Restaurants (Quick Payment Service Pilot,GPC
Statement 20/06/2017 to 17/07/2017,C&YPS-Non Delegated,Currys Online,03/07/2017,133.33,Other Transfer Payments - Leaving Care Grants,"RADIO, TELEVISION, AND STEREO STORES (ELECTRONIC STORES)",GPC
Statement 20/06/2017 to 17/07/2017,C&YPS-Non Delegated,East Midlands Trai,21/06/2017,34.20,Other Transfer Payments - General,Passenger Railways,GPC
Statement 20/06/2017 to 17/07/2017,C&YPS-Non Delegated,East Midlands Trains,07/07/2017,143.50,Casual/Essential - General,Passenger Railways,GPC
Statement 20/06/2017 to 17/07/2017,C&YPS-Non Delegated,Eb *rotherham Survivor,03/07/2017,106.79,Other Equipment & Materials - General,Business Services-Not Elsewhere Classified,GPC
Statement 20/06/2017 to 17/07/2017,C&YPS-Non Delegated,Elc-Internet,21/06/2017,58.33,Provisions - General,Department Stores,GPC
Statement 20/06/2017 to 17/07/2017,C&YPS-Non Delegated,Essex And Suffolk Water,27/06/2017,41.45,Other Transfer Payments - Section 24,Miscellaneous Personal Services-Not Elsewhere Clas,GPC
Statement 20/06/2017 to 17/07/2017,C&YPS-Non Delegated,Eurogarages T/A St James,09/07/2017,66.72,Other Expenditure - Assist/Conts to Schemes,Service Stations (with or without Ancillary Servic,GPC
Statement 20/06/2017 to 17/07/2017,C&YPS-Non Delegated,Eventbrite,10/07/2017,-104.44,Other Equipment & Materials - General,Business Services-Not Elsewhere Classified,GPC
Statement 20/06/2017 to 17/07/2017,C&YPS-Non Delegated,Fab Trading,10/07/2017,215.00,Other Transfer Payments - Leaving Care Grants,Household Appliance Stores,GPC
Statement 20/06/2017 to 17/07/2017,C&YPS-Non Delegated,Facebk Szztbcwl52,01/07/2017,111.05,Recruitment Advertising - General,Advertising Services,GPC
Statement 20/06/2017 to 17/07/2017,C&YPS-Non Delegated,Facebk Y7aw4cwg52,30/06/2017,50.00,Publicity/Marketing - Information Provision,Advertising Services,GPC
Statement 20/06/2017 to 17/07/2017,C&YPS-Non Delegated,Fast Key Services Limi,11/07/2017,6.04,Other Equipment & Materials - General,Business Services-Not Elsewhere Classified,GPC
Statement 20/06/2017 to 17/07/2017,C&YPS-Non Delegated,Gro Hm Passport Office,13/06/2017,-9.25,Other Transfer Payments - Section 23 Grants,Government Services-Not Elsewhere Classified,GPC
Statement 20/06/2017 to 17/07/2017,C&YPS-Non Delegated,H & Bbc Payment,16/06/2017,24.53,Other Transfer Payments - Leaving Care Grants,Government Services-Not Elsewhere Classified,GPC
Statement 20/06/2017 to 17/07/2017,C&YPS-Non Delegated,Hm Passport Office,20/06/2017,49.00,Other Expenditure - General,Government Services-Not Elsewhere Classified,GPC
Statement 20/06/2017 to 17/07/2017,C&YPS-Non Delegated,Hm Passport Office,20/06/2017,72.50,Other Transfer Payments - Section 23 Grants,Government Services-Not Elsewhere Classified,GPC
Statement 20/06/2017 to 17/07/2017,C&YPS-Non Delegated,Hm Passport Office,27/06/2017,49.00,Other Transfer Payments - Section 23 Grants,Government Services-Not Elsewhere Classified,GPC
Statement 20/06/2017 to 17/07/2017,C&YPS-Non Delegated,Hm Passport Office,28/06/2017,72.50,Other Transfer Payments - Section 23 Grants,Government Services-Not Elsewhere Classified,GPC
Statement 20/06/2017 to 17/07/2017,C&YPS-Non Delegated,Hm Passport Office,29/06/2017,72.50,Other Transfer Payments - Section 23 Grants,Government Services-Not Elsewhere Classified,GPC
Statement 20/06/2017 to 17/07/2017,C&YPS-Non Delegated,Hm Passport Office,12/07/2017,49.00,Other Transfer Payments - Section 23 Grants,Government Services-Not Elsewhere Classified,GPC
Statement 20/06/2017 to 17/07/2017,C&YPS-Non Delegated,Holiday Inn,28/06/2017,257.94,Training Expenses - General,"Lodging-Hotels, Motels, Resorts",GPC
Statement 20/06/2017 to 17/07/2017,C&YPS-Non Delegated,Home Bargains Coalvill,11/07/2017,19.97,Other Transfer Payments - Leaving Care Grants,Hardware Stores,GPC
Statement 20/06/2017 to 17/07/2017,C&YPS-Non Delegated,Home Bargains Coalvill,20/06/2017,11.34,Provisions - General,Hardware Stores,GPC
Statement 20/06/2017 to 17/07/2017,C&YPS-Non Delegated,Home Bargains Swadlinc,21/06/2017,51.59,Other Transfer Payments - Leaving Care Grants,Hardware Stores,GPC
Statement 20/06/2017 to 17/07/2017,C&YPS-Non Delegated,Home Bargains Swadlinc,22/06/2017,51.08,Other Transfer Payments - Leaving Care Grants,Hardware Stores,GPC
Statement 20/06/2017 to 17/07/2017,C&YPS-Non Delegated,Home Bargains Swadlinc,28/06/2017,19.56,Other Transfer Payments - Leaving Care Grants,Hardware Stores,GPC
Statement 20/06/2017 to 17/07/2017,C&YPS-Non Delegated,Ikea Limited,27/06/2017,137.50,IT Equipment - General,"Furniture, Home Furnishings and Equipment Stores,",GPC
Statement 20/06/2017 to 17/07/2017,C&YPS-Non Delegated,Ikea Online,27/06/2017,93.75,Other Equipment & Materials - General,Miscellaneous House Furnishing Specialty Shops,GPC
Statement 20/06/2017 to 17/07/2017,C&YPS-Non Delegated,Itunes.Com/Bill,23/06/2017,5.83,IT Equipment - General,Record Shops,GPC
Statement 20/06/2017 to 17/07/2017,C&YPS-Non Delegated,Itunes.Com/Bill,12/07/2017,5.83,IT Equipment - General,Record Shops,GPC
Statement 20/06/2017 to 17/07/2017,C&YPS-Non Delegated,Itunes.Com/Bill,22/06/2017,40.83,Provisions - General,Record Shops,GPC
Statement 20/06/2017 to 17/07/2017,C&YPS-Non Delegated,Iz *the Muscle Machine Gy,27/06/2017,5.21,Subscriptions - General,RECREATION SERVICES--NOT ELSEWHERE CLASSIFIED,GPC
Statement 20/06/2017 to 17/07/2017,C&YPS-Non Delegated,Joseph Morris Butc,22/06/2017,12.02,Provisions - General,"Miscellaneous Food Stores-Convenience Stores, Mark",GPC
Statement 20/06/2017 to 17/07/2017,C&YPS-Non Delegated,Kfc - Hinckley,23/06/2017,7.14,Other Transfer Payments - Section 24,Fast-Food Restaurants (Quick Payment Service Pilot,GPC
Statement 20/06/2017 to 17/07/2017,C&YPS-Non Delegated,Leic City Council,29/06/2017,24.00,Other Expenditure - General,Government Services-Not Elsewhere Classified,GPC
Statement 20/06/2017 to 17/07/2017,C&YPS-Non Delegated,Leic City Council,30/06/2017,14.00,Other Expenditure - General,Government Services-Not Elsewhere Classified,GPC
Statement 20/06/2017 to 17/07/2017,C&YPS-Non Delegated,Leic City Council,23/06/2017,14.00,Other Transfer Payments - Section 23 Grants,Government Services-Not Elsewhere Classified,GPC
Statement 20/06/2017 to 17/07/2017,C&YPS-Non Delegated,Leicester Vocal Tech,27/06/2017,40.00,Recruitment Advertising - General,Schools and Educational Services-Not Elsewhere Cla,GPC
Statement 20/06/2017 to 17/07/2017,C&YPS-Non Delegated,Lidl Uk,07/07/2017,25.15,Materials - General,"Grocery Stores, Supermarkets",GPC
Statement 20/06/2017 to 17/07/2017,C&YPS-Non Delegated,McDonalds,01/07/2017,11.05,Other Equipment & Materials - General,Fast-Food Restaurants (Quick Payment Service Pilot,GPC
Statement 20/06/2017 to 17/07/2017,C&YPS-Non Delegated,McDonalds,14/07/2017,45.32,Other Expenditure - Assist/Conts to Schemes,"Eating Places, Restaurants",GPC
Statement 20/06/2017 to 17/07/2017,C&YPS-Non Delegated,McDonalds,14/07/2017,4.29,Other Expenditure - Assist/Conts to Schemes,"Eating Places, Restaurants",GPC
Statement 20/06/2017 to 17/07/2017,C&YPS-Non Delegated,McDonalds,27/06/2017,3.48,Other Expenditure - General,Fast-Food Restaurants (Quick Payment Service Pilot,GPC
Statement 20/06/2017 to 17/07/2017,C&YPS-Non Delegated,McDonalds,28/06/2017,7.48,Other Expenditure - General,Fast-Food Restaurants (Quick Payment Service Pilot,GPC
Statement 20/06/2017 to 17/07/2017,C&YPS-Non Delegated,McDonalds,04/07/2017,5.58,Other Expenditure - General,Fast-Food Restaurants (Quick Payment Service Pilot,GPC
Statement 20/06/2017 to 17/07/2017,C&YPS-Non Delegated,McDonalds,05/07/2017,5.58,Other Expenditure - General,"Eating Places, Restaurants",GPC
Statement 20/06/2017 to 17/07/2017,C&YPS-Non Delegated,McDonalds,06/07/2017,2.58,Other Expenditure - General,Fast-Food Restaurants (Quick Payment Service Pilot,GPC
Statement 20/06/2017 to 17/07/2017,C&YPS-Non Delegated,McDonalds,12/07/2017,5.97,Other Expenditure - General,"Eating Places, Restaurants",GPC
Statement 20/06/2017 to 17/07/2017,C&YPS-Non Delegated,McDonalds,27/06/2017,3.07,Other Transfer Payments - Section 24,Fast-Food Restaurants (Quick Payment Service Pilot,GPC
Statement 20/06/2017 to 17/07/2017,C&YPS-Non Delegated,Mike Bs Security Locksmit,19/06/2017,68.00,R & M of Buildings - General,Business Services-Not Elsewhere Classified,GPC
Statement 20/06/2017 to 17/07/2017,C&YPS-Non Delegated,National Express Limited,28/06/2017,15.90,Other Transfer Payments - Section 23 Grants,"Bus Lines, Charters, Tour Buses",GPC
Statement 20/06/2017 to 17/07/2017,C&YPS-Non Delegated,Ncp Limited,05/07/2017,10.00,Casual/Essential - General,Automobile Parking Lots and Garages,GPC
Statement 20/06/2017 to 17/07/2017,C&YPS-Non Delegated,Nochex-Sensory Educati,14/07/2017,76.54,Other Equipment & Materials - General,Miscellaneous General Merchandise Stores,GPC
Statement 20/06/2017 to 17/07/2017,C&YPS-Non Delegated,O2 Loughborough,03/07/2017,15.00,Other Transfer Payments - Leaving Care Grants,Telecommunication Equipment Including Telephone Sa,GPC
Statement 20/06/2017 to 17/07/2017,C&YPS-Non Delegated,O2 Loughborough,10/07/2017,15.00,Other Transfer Payments - Leaving Care Grants,Telecommunication Equipment Including Telephone Sa,GPC
Statement 20/06/2017 to 17/07/2017,C&YPS-Non Delegated,Oadby & Wigston B.Coun,06/07/2017,84.05,Other Transfer Payments - Sector 17- Other,Government Services-Not Elsewhere Classified,GPC
Statement 20/06/2017 to 17/07/2017,C&YPS-Non Delegated,Parkholidays.Com,01/07/2017,718.50,Public Transport -  Staff - General,Trailer Parks and Campgrounds,GPC
Statement 20/06/2017 to 17/07/2017,C&YPS-Non Delegated,Paylink Internet,29/06/2017,21.00,Other Expenditure - General,Government Services-Not Elsewhere Classified,GPC
Statement 20/06/2017 to 17/07/2017,C&YPS-Non Delegated,Paypal *cornersofas,03/07/2017,618.44,Other Transfer Payments - Leaving Care Grants,"Furniture, Home Furnishings and Equipment Stores,",GPC
Statement 20/06/2017 to 17/07/2017,C&YPS-Non Delegated,Paypal *local Skip,11/07/2017,138.00,Other Transfer Payments - Leaving Care Grants,Professional Services-Not Elsewhere Classified,GPC
Statement 20/06/2017 to 17/07/2017,C&YPS-Non Delegated,Paypal *sparesshopl,03/07/2017,9.79,Other Expenditure - General,Camera and Photographic Supply Stores,GPC
Statement 20/06/2017 to 17/07/2017,C&YPS-Non Delegated,Paypal *uafurniture,02/07/2017,159.99,Other Transfer Payments - Leaving Care Grants,Miscellaneous and Specialty Retail Stores,GPC
Statement 20/06/2017 to 17/07/2017,C&YPS-Non Delegated,Paypal *zendell Ltd,28/06/2017,267.46,Materials - General,Miscellaneous and Specialty Retail Stores,GPC
Statement 20/06/2017 to 17/07/2017,C&YPS-Non Delegated,Phoenix Arts,29/06/2017,7.50,Subsistence - General,Motion Picture Theatres,GPC
Statement 20/06/2017 to 17/07/2017,C&YPS-Non Delegated,Pizza Hut 953,05/07/2017,14.79,Other Transfer Payments - Section 23 Grants,"Eating Places, Restaurants",GPC
Statement 20/06/2017 to 17/07/2017,C&YPS-Non Delegated,Post Office Counter,28/06/2017,2.90,Postal Services - General,Postage Stamps,GPC
Statement 20/06/2017 to 17/07/2017,C&YPS-Non Delegated,Post Office Shop,04/07/2017,12.65,Other Expenditure - General,Postage Stamps,GPC
Statement 20/06/2017 to 17/07/2017,C&YPS-Non Delegated,Poundstretcher 175,29/06/2017,5.00,Materials - General,"Drapery, Window Coverings, and Upholstery Stores",GPC
Statement 20/06/2017 to 17/07/2017,C&YPS-Non Delegated,Poundstretcher 791,04/07/2017,114.40,Other Transfer Payments - Leaving Care Grants,"Drapery, Window Coverings, and Upholstery Stores",GPC
Statement 20/06/2017 to 17/07/2017,C&YPS-Non Delegated,Poundworld Retail,22/06/2017,6.67,Other Transfer Payments - Leaving Care Grants,Discount Stores,GPC
Statement 20/06/2017 to 17/07/2017,C&YPS-Non Delegated,Premier Inn 44537425,06/07/2017,99.15,Other Expenditure - General,PREMIER TRAVEL,GPC
Statement 20/06/2017 to 17/07/2017,C&YPS-Non Delegated,Premier Inn44022680,07/07/2017,108.99,Other Transfer Payments - Section 23 Grants,PREMIER TRAVEL,GPC
Statement 20/06/2017 to 17/07/2017,C&YPS-Non Delegated,Premier Inn44521255,03/07/2017,70.50,Other Transfer Payments - Section 23 Grants,PREMIER TRAVEL,GPC
Statement 20/06/2017 to 17/07/2017,C&YPS-Non Delegated,Premier Inn44521255,04/07/2017,92.99,Other Transfer Payments - Section 23 Grants,PREMIER TRAVEL,GPC
Statement 20/06/2017 to 17/07/2017,C&YPS-Non Delegated,Premier Inn44521255,05/07/2017,88.99,Other Transfer Payments - Section 23 Grants,PREMIER TRAVEL,GPC
Statement 20/06/2017 to 17/07/2017,C&YPS-Non Delegated,Premier Inn44521255,06/07/2017,80.49,Other Transfer Payments - Section 23 Grants,PREMIER TRAVEL,GPC
Statement 20/06/2017 to 17/07/2017,C&YPS-Non Delegated,Premier Inn44521255,07/07/2017,158.98,Other Transfer Payments - Section 23 Grants,PREMIER TRAVEL,GPC
Statement 20/06/2017 to 17/07/2017,C&YPS-Non Delegated,Rnib Charity,27/06/2017,36.00,General Equipment - General,Laboratory/Medical/Dental/Ophthalmic Hospital Equi,GPC
Statement 20/06/2017 to 17/07/2017,C&YPS-Non Delegated,Roald Dahl Museum Story,27/06/2017,90.00,Other Expenditure - General,Tourist Attractions and Exhibits,GPC
Statement 20/06/2017 to 17/07/2017,C&YPS-Non Delegated,Royal Mail,04/07/2017,112.00,Other Expenditure - General,Postage Stamps,GPC
Statement 20/06/2017 to 17/07/2017,C&YPS-Non Delegated,Sainsburys S/mkt,12/07/2017,6.75,General Equipment - General,"Grocery Stores, Supermarkets",GPC
Statement 20/06/2017 to 17/07/2017,C&YPS-Non Delegated,Sainsburys S/mkt,05/07/2017,11.00,Materials - General,"Grocery Stores, Supermarkets",GPC
Statement 20/06/2017 to 17/07/2017,C&YPS-Non Delegated,Sainsburys S/mkt,14/07/2017,3.50,Subsistence - General,"Grocery Stores, Supermarkets",GPC
Statement 20/06/2017 to 17/07/2017,C&YPS-Non Delegated,Sainsburys S/mkt,14/07/2017,3.05,Subsistence - General,"Grocery Stores, Supermarkets",GPC
Statement 20/06/2017 to 17/07/2017,C&YPS-Non Delegated,Sainsburys S/mkt,14/07/2017,6.85,Subsistence - General,"Grocery Stores, Supermarkets",GPC
Statement 20/06/2017 to 17/07/2017,C&YPS-Non Delegated,Sainsburys S/mkts,19/06/2017,7.25,General Equipment - General,"Grocery Stores, Supermarkets",GPC
Statement 20/06/2017 to 17/07/2017,C&YPS-Non Delegated,Sainsburys S/mkts,22/06/2017,12.20,General Equipment - General,"Grocery Stores, Supermarkets",GPC
Statement 20/06/2017 to 17/07/2017,C&YPS-Non Delegated,Sainsburys S/mkts,27/06/2017,7.60,General Equipment - General,"Grocery Stores, Supermarkets",GPC
Statement 20/06/2017 to 17/07/2017,C&YPS-Non Delegated,Sainsburys S/mkts,12/07/2017,6.50,General Equipment - General,"Grocery Stores, Supermarkets",GPC
Statement 20/06/2017 to 17/07/2017,C&YPS-Non Delegated,Sainsburys S/mkts,29/06/2017,8.00,Materials - General,"Grocery Stores, Supermarkets",GPC
Statement 20/06/2017 to 17/07/2017,C&YPS-Non Delegated,Sainsburys S/mkts,10/07/2017,5.50,Other Expenditure - General,"Grocery Stores, Supermarkets",GPC
Statement 20/06/2017 to 17/07/2017,C&YPS-Non Delegated,Sainsburys S/mkts,03/07/2017,67.00,Provisions - General,"Grocery Stores, Supermarkets",GPC
Statement 20/06/2017 to 17/07/2017,C&YPS-Non Delegated,Sanctuary Housing,21/06/2017,134.17,Other Transfer Payments - Leaving Care Grants,Charitable and Social Service Organizations,GPC
Statement 20/06/2017 to 17/07/2017,C&YPS-Non Delegated,Sanctuary Housing,07/07/2017,78.27,Other Transfer Payments - Leaving Care Grants,Charitable and Social Service Organizations,GPC
Statement 20/06/2017 to 17/07/2017,C&YPS-Non Delegated,Shoe Zone Ltd,03/07/2017,12.99,Materials - General,Shoe Stores,GPC
Statement 20/06/2017 to 17/07/2017,C&YPS-Non Delegated,Sportsdirect 65,06/07/2017,28.33,Other Transfer Payments - General,Sporting Goods Stores,GPC
Statement 20/06/2017 to 17/07/2017,C&YPS-Non Delegated,St Martins Service Statio,13/07/2017,66.68,Other Expenditure - Assist/Conts to Schemes,Service Stations (with or without Ancillary Servic,GPC
Statement 20/06/2017 to 17/07/2017,C&YPS-Non Delegated,Subway,03/07/2017,5.95,Subsistence - General,"Eating Places, Restaurants",GPC
Statement 20/06/2017 to 17/07/2017,C&YPS-Non Delegated,Sunderland Cc,30/06/2017,10.00,Other Expenditure - General,Government Services-Not Elsewhere Classified,GPC
Statement 20/06/2017 to 17/07/2017,C&YPS-Non Delegated,Talktalk Telecom,27/06/2017,50.90,Other Transfer Payments - Section 24,Computer Network/Information Services,GPC
Statement 20/06/2017 to 17/07/2017,C&YPS-Non Delegated,Tenpin,22/06/2017,19.08,Other Transfer Payments - Section 23 Grants,"Membership Clubs (Sports, Recreation, Athletic), C",GPC
Statement 20/06/2017 to 17/07/2017,C&YPS-Non Delegated,Tesco Direct,12/07/2017,140.83,Other Transfer Payments - General,Miscellaneous and Specialty Retail Stores,GPC
Statement 20/06/2017 to 17/07/2017,C&YPS-Non Delegated,Tesco Store 2846,29/06/2017,14.99,Other Transfer Payments - Section 24,"Grocery Stores, Supermarkets",GPC
Statement 20/06/2017 to 17/07/2017,C&YPS-Non Delegated,Tesco Store 2849,11/07/2017,16.05,Materials - General,"Grocery Stores, Supermarkets",GPC
Statement 20/06/2017 to 17/07/2017,C&YPS-Non Delegated,Tesco Store 2849,03/07/2017,3.00,Other Expenditure - General,"Grocery Stores, Supermarkets",GPC
Statement 20/06/2017 to 17/07/2017,C&YPS-Non Delegated,Tesco Store 2849,06/07/2017,14.52,Other Expenditure - General,"Grocery Stores, Supermarkets",GPC
Statement 20/06/2017 to 17/07/2017,C&YPS-Non Delegated,Tesco Store 2849,10/07/2017,13.63,Other Expenditure - General,"Grocery Stores, Supermarkets",GPC
Statement 20/06/2017 to 17/07/2017,C&YPS-Non Delegated,Tesco Store 2878,21/06/2017,10.25,Provisions - General,"Grocery Stores, Supermarkets",GPC
Statement 20/06/2017 to 17/07/2017,C&YPS-Non Delegated,Tesco Stores 2849,26/06/2017,34.92,Materials - General,"Grocery Stores, Supermarkets",GPC
Statement 20/06/2017 to 17/07/2017,C&YPS-Non Delegated,Tesco Stores 2849,06/07/2017,2.85,Other Expenditure - General,"Grocery Stores, Supermarkets",GPC
Statement 20/06/2017 to 17/07/2017,C&YPS-Non Delegated,Tesco Stores 2849,19/06/2017,5.65,Training Expenses - General,"Grocery Stores, Supermarkets",GPC
Statement 20/06/2017 to 17/07/2017,C&YPS-Non Delegated,Tesco Stores 5182,27/06/2017,12.56,Other Transfer Payments - Section 24,"Grocery Stores, Supermarkets",GPC
Statement 20/06/2017 to 17/07/2017,C&YPS-Non Delegated,Tesco Stores 5182,23/06/2017,12.44,Provisions - General,"Grocery Stores, Supermarkets",GPC
Statement 20/06/2017 to 17/07/2017,C&YPS-Non Delegated,Tesco Stores 5182,27/06/2017,55.32,Provisions - General,"Grocery Stores, Supermarkets",GPC
Statement 20/06/2017 to 17/07/2017,C&YPS-Non Delegated,Tesco Stores 5182,05/07/2017,21.72,Provisions - General,"Grocery Stores, Supermarkets",GPC
Statement 20/06/2017 to 17/07/2017,C&YPS-Non Delegated,Tesco Stores 5182,12/07/2017,7.50,Provisions - General,"Grocery Stores, Supermarkets",GPC
Statement 20/06/2017 to 17/07/2017,C&YPS-Non Delegated,Tesco Stores 6678,20/06/2017,2.94,Other Expenditure - General,"Grocery Stores, Supermarkets",GPC
Statement 20/06/2017 to 17/07/2017,C&YPS-Non Delegated,Tesco-Stores 6473,24/06/2017,70.57,Provisions - General,"Grocery Stores, Supermarkets",GPC
Statement 20/06/2017 to 17/07/2017,C&YPS-Non Delegated,The Book People,04/07/2017,152.97,Books - General,Book Stores,GPC
Statement 20/06/2017 to 17/07/2017,C&YPS-Non Delegated,The Book People,11/07/2017,67.90,Books - General,Book Stores,GPC
Statement 20/06/2017 to 17/07/2017,C&YPS-Non Delegated,The Buttermarket Cafe,21/06/2017,7.45,Other Transfer Payments - Section 24,"Drinking Places (Alcoholic Beverages)-Bars, Tavern",GPC
Statement 20/06/2017 to 17/07/2017,C&YPS-Non Delegated,The Post Office,27/06/2017,50.00,Other Transfer Payments - Section 24,Postage Stamps,GPC
Statement 20/06/2017 to 17/07/2017,C&YPS-Non Delegated,The Post Office,06/07/2017,19.04,Subsistence - General,Postage Stamps,GPC
Statement 20/06/2017 to 17/07/2017,C&YPS-Non Delegated,The Range,16/07/2017,40.80,Other Transfer Payments - Section 23 Grants,Department Stores,GPC
Statement 20/06/2017 to 17/07/2017,C&YPS-Non Delegated,The Space Place,26/06/2017,80.83,Other Transfer Payments - General,"Motor Freight Carriers, and Trucking",GPC
Statement 20/06/2017 to 17/07/2017,C&YPS-Non Delegated,Timpson Ltd,22/06/2017,84.00,Other Expenditure - General,"Shoe Repair Shops, Shoe Shine Parlors, Hat Cleanin",GPC
Statement 20/06/2017 to 17/07/2017,C&YPS-Non Delegated,Trainline,11/07/2017,20.45,Other Transport Costs - General,Passenger Railways,GPC
Statement 20/06/2017 to 17/07/2017,C&YPS-Non Delegated,Tvlicensing.Co.Uk,23/06/2017,147.00,Other Transfer Payments - Leaving Care Grants,"Management, Consulting and Public Relations Servic",GPC
Statement 20/06/2017 to 17/07/2017,C&YPS-Non Delegated,Union Wharf Narrowboats,20/06/2017,150.00,Training Expenses - General,Boat Rentals and Leasing,GPC
Statement 20/06/2017 to 17/07/2017,C&YPS-Non Delegated,Upt - Nottinghamcity Cou,20/06/2017,8.00,Client/Volunteers - General,Professional Services-Not Elsewhere Classified,GPC
Statement 20/06/2017 to 17/07/2017,C&YPS-Non Delegated,Upt - Nottinghamcity Cou,28/06/2017,7.00,Client/Volunteers - General,Professional Services-Not Elsewhere Classified,GPC
Statement 20/06/2017 to 17/07/2017,C&YPS-Non Delegated,Virgin Trains,10/07/2017,35.20,Other Transport Costs - General,Passenger Railways,GPC
Statement 20/06/2017 to 17/07/2017,C&YPS-Non Delegated,Vision Care Optometrists,22/06/2017,39.90,Other Transfer Payments - Section 24,"Optometrists, Ophthalmologists",GPC
Statement 20/06/2017 to 17/07/2017,C&YPS-Non Delegated,Vue Bsl Ltd,11/07/2017,14.68,Other Transfer Payments - Section 23 Grants,Motion Picture Theatres,GPC
Statement 20/06/2017 to 17/07/2017,C&YPS-Non Delegated,W M Morrisons,11/07/2017,13.17,Other Expenditure - General,"Grocery Stores, Supermarkets",GPC
Statement 20/06/2017 to 17/07/2017,C&YPS-Non Delegated,W M Morrisons Plc,27/06/2017,8.33,Other Transfer Payments - Section 24,"Grocery Stores, Supermarkets",GPC
Statement 20/06/2017 to 17/07/2017,C&YPS-Non Delegated,W M Morrisons Plc,27/06/2017,49.66,Other Transfer Payments - Section 24,"Grocery Stores, Supermarkets",GPC
Statement 20/06/2017 to 17/07/2017,C&YPS-Non Delegated,Waitrose 728,14/07/2017,22.00,Materials - General,"Grocery Stores, Supermarkets",GPC
Statement 20/06/2017 to 17/07/2017,C&YPS-Non Delegated,Waveney District C,03/07/2017,12.18,Other Transfer Payments - Section 24,Government Services-Not Elsewhere Classified,GPC
Statement 20/06/2017 to 17/07/2017,C&YPS-Non Delegated,West Coast Trains,20/06/2017,9.00,Public Transport -  Staff - General,Automobile Parking Lots and Garages,GPC
Statement 20/06/2017 to 17/07/2017,C&YPS-Non Delegated,West Coast Trains,27/06/2017,9.00,Public Transport -  Staff - General,Automobile Parking Lots and Garages,GPC
Statement 20/06/2017 to 17/07/2017,C&YPS-Non Delegated,Wilko Retail Limit,04/07/2017,17.00,Other Equipment & Materials - General,Household Appliance Stores,GPC
Statement 20/06/2017 to 17/07/2017,C&YPS-Non Delegated,Wilko Retail Limit,20/06/2017,14.20,Other Expenditure - General,Household Appliance Stores,GPC
Statement 20/06/2017 to 17/07/2017,C&YPS-Non Delegated,Wilko Retail Limit,27/06/2017,15.00,Other Transfer Payments - Leaving Care Grants,Household Appliance Stores,GPC
Statement 20/06/2017 to 17/07/2017,C&YPS-Non Delegated,Wilko Retail Limit,05/07/2017,22.08,Other Transfer Payments - Leaving Care Grants,Household Appliance Stores,GPC
Statement 20/06/2017 to 17/07/2017,C&YPS-Non Delegated,Wilko Retail Limit,11/07/2017,37.92,Other Transfer Payments - Leaving Care Grants,Household Appliance Stores,GPC
Statement 20/06/2017 to 17/07/2017,C&YPS-Non Delegated,Wp-Warwickshire Co,06/07/2017,10.65,Other Transfer Payments - Section 23 Grants,Government Services-Not Elsewhere Classified,GPC
Statement 20/06/2017 to 17/07/2017,C&YPS-Non Delegated,Www.Adt.Co.Uk,26/06/2017,26.50,R & M of Buildings - General,"Detective Agencies, Protective Agencies, Security",GPC
Statement 20/06/2017 to 17/07/2017,C&YPS-Non Delegated,Www.Anglianwaterbu,29/06/2017,72.98,Water Charges - General,"Utilities-Electric, Gas, Sanitary, Water",GPC
Statement 20/06/2017 to 17/07/2017,C&YPS-Non Delegated,Www.Argos.Co.Uk,27/06/2017,43.94,Other Equipment & Materials - General,Discount Stores,GPC
Statement 20/06/2017 to 17/07/2017,C&YPS-Non Delegated,Www.Argos.Co.Uk,19/06/2017,112.41,Other Transfer Payments - Leaving Care Grants,Discount Stores,GPC
Statement 20/06/2017 to 17/07/2017,C&YPS-Non Delegated,Www.Argos.Co.Uk,28/06/2017,309.98,Other Transfer Payments - Leaving Care Grants,Discount Stores,GPC
Statement 20/06/2017 to 17/07/2017,C&YPS-Non Delegated,Www.Argos.Co.Uk,03/07/2017,257.68,Other Transfer Payments - Leaving Care Grants,Discount Stores,GPC
Statement 20/06/2017 to 17/07/2017,C&YPS-Non Delegated,Www.Argos.Co.Uk,30/06/2017,53.93,Other Transfer Payments - Section 17 - Daycare,Discount Stores,GPC
Statement 20/06/2017 to 17/07/2017,C&YPS-Non Delegated,Www.Argos.Co.Uk,21/06/2017,24.12,Stationery - General,Discount Stores,GPC
Statement 20/06/2017 to 17/07/2017,C&YPS-Non Delegated,Www.Calumetphoto.Co.Uk,04/07/2017,148.00,Materials - General,Camera and Photographic Supply Stores,GPC
Statement 20/06/2017 to 17/07/2017,C&YPS-Non Delegated,Www.Coram.Org.Uk,10/07/2017,9.95,Other Transfer Payments - General,Charitable and Social Service Organizations,GPC
Statement 20/06/2017 to 17/07/2017,C&YPS-Non Delegated,Www.Coram.Org.Uk,16/06/2017,10.95,Training Expenses - General,Charitable and Social Service Organizations,GPC
Statement 20/06/2017 to 17/07/2017,C&YPS-Non Delegated,Www.Dfs.Co.Uk,13/07/2017,54.00,Other Transfer Payments - Leaving Care Grants,"Furniture, Home Furnishings and Equipment Stores,",GPC
Statement 20/06/2017 to 17/07/2017,C&YPS-Non Delegated,Www.Dictation4u.Co.Uk,21/06/2017,7.06,Other Expenditure - General,Electrical Parts and Equipment,GPC
Statement 20/06/2017 to 17/07/2017,C&YPS-Non Delegated,Www.Edenred.Co.Uk,16/06/2017,200.00,Recruitment Advertising - General,Business Services-Not Elsewhere Classified,GPC
Statement 20/06/2017 to 17/07/2017,C&YPS-Non Delegated,Www.Groupon.Co.Uk,21/06/2017,10.00,Other Transfer Payments - Section 23 Grants,"Buying/Shopping Services, Clubs",GPC
Statement 20/06/2017 to 17/07/2017,C&YPS-Non Delegated,Www.Lynvale.Co.Uk,14/07/2017,119.95,Other Equipment & Materials - General,Commercial Equipment Not Elsewhere Classified,GPC
Statement 20/06/2017 to 17/07/2017,C&YPS-Non Delegated,Www.Milkandmore.Co.Uk,22/06/2017,10.92,Provisions - General,Continuity/Subscription Merchants,GPC
Statement 20/06/2017 to 17/07/2017,C&YPS-Non Delegated,Www.Milkandmore.Co.Uk,03/07/2017,9.40,Provisions - General,Continuity/Subscription Merchants,GPC
Statement 20/06/2017 to 17/07/2017,C&YPS-Non Delegated,Www.Milkandmore.Co.Uk,03/07/2017,14.04,Provisions - General,Continuity/Subscription Merchants,GPC
Statement 20/06/2017 to 17/07/2017,C&YPS-Non Delegated,Www.Milkandmore.Co.Uk,03/07/2017,4.68,Provisions - General,Continuity/Subscription Merchants,GPC
Statement 20/06/2017 to 17/07/2017,C&YPS-Non Delegated,Www.Onlinestore.Leedsmet,27/06/2017,140.00,Other Expenditure - General,"Colleges, Universities, Professional Schools, and",GPC
Statement 20/06/2017 to 17/07/2017,C&YPS-Non Delegated,Www.Tts-Groups.Co.Uk,14/07/2017,127.90,Other Equipment & Materials - General,"Stationery, Office, and School Supply Stores",GPC
Statement 20/06/2017 to 17/07/2017,C&YPS-Non Delegated,Www.Woodentoyshop.Co.U,23/06/2017,15.79,Provisions - General,"Hobby, Toy, and Game Shops",GPC
Statement 20/06/2017 to 17/07/2017,C&YPS-Schools,Aldi,26/06/2017,32.64,Materials - General,"Grocery Stores, Supermarkets",GPC
Statement 20/06/2017 to 17/07/2017,C&YPS-Schools,Aldi,04/07/2017,30.02,Materials - General,"Grocery Stores, Supermarkets",GPC
Statement 20/06/2017 to 17/07/2017,C&YPS-Schools,Aldi,10/07/2017,52.43,Materials - General,"Grocery Stores, Supermarkets",GPC
Statement 20/06/2017 to 17/07/2017,C&YPS-Schools,Amazon UK Marketplace,25/06/2017,29.47,Materials - General,Miscellaneous and Specialty Retail Stores,GPC
Statement 20/06/2017 to 17/07/2017,C&YPS-Schools,Amazon UK Marketplace,29/06/2017,3.79,Materials - General,Miscellaneous and Specialty Retail Stores,GPC
Statement 20/06/2017 to 17/07/2017,C&YPS-Schools,Amazon UK Marketplace,29/06/2017,2.75,Materials - General,Miscellaneous and Specialty Retail Stores,GPC
Statement 20/06/2017 to 17/07/2017,C&YPS-Schools,Amazon UK Marketplace,30/06/2017,9.97,Materials - General,Miscellaneous and Specialty Retail Stores,GPC
Statement 20/06/2017 to 17/07/2017,C&YPS-Schools,Argos Ltd,03/07/2017,14.99,Materials - General,Discount Stores,GPC
Statement 20/06/2017 to 17/07/2017,C&YPS-Schools,Argos Ltd,06/07/2017,53.99,Materials - General,Discount Stores,GPC
Statement 20/06/2017 to 17/07/2017,C&YPS-Schools,Argos Ltd,12/07/2017,22.99,Materials - General,Discount Stores,GPC
Statement 20/06/2017 to 17/07/2017,C&YPS-Schools,Argos Retail Group,28/06/2017,15.00,Materials - General,Discount Stores,GPC
Statement 20/06/2017 to 17/07/2017,C&YPS-Schools,East Midlands Trai,30/06/2017,32.90,Casual/Essential - General,Passenger Railways,GPC
Statement 20/06/2017 to 17/07/2017,C&YPS-Schools,Espo,05/07/2017,92.43,Other Expenditure - General,Government Services-Not Elsewhere Classified,GPC
Statement 20/06/2017 to 17/07/2017,C&YPS-Schools,Espo,06/07/2017,231.79,Other Expenditure - General,Government Services-Not Elsewhere Classified,GPC
Statement 20/06/2017 to 17/07/2017,C&YPS-Schools,Iz *tonya Treats,11/07/2017,70.00,Materials - General,Miscellaneous and Specialty Retail Stores,GPC
Statement 20/06/2017 to 17/07/2017,C&YPS-Schools,Paypal *buybop,28/06/2017,14.99,Materials - General,Discount Stores,GPC
Statement 20/06/2017 to 17/07/2017,C&YPS-Schools,Trainline,29/06/2017,78.64,Casual/Essential - General,Passenger Railways,GPC
Statement 20/06/2017 to 17/07/2017,C&YPS-Schools,Trainline,29/06/2017,34.32,Casual/Essential - General,Passenger Railways,GPC
Statement 20/06/2017 to 17/07/2017,C&YPS-Schools,Trainline,29/06/2017,40.09,Casual/Essential - General,Passenger Railways,GPC
Statement 20/06/2017 to 17/07/2017,C&YPS-Schools,Waitrose 141,06/07/2017,40.49,Materials - General,"Grocery Stores, Supermarkets",GPC
Statement 20/06/2017 to 17/07/2017,C&YPS-Schools,Waitrose 141,07/07/2017,11.45,Materials - General,"Grocery Stores, Supermarkets",GPC
Statement 20/06/2017 to 17/07/2017,C&YPS-Schools,Wm Morrison 054,25/06/2017,17.65,Materials - General,"Grocery Stores, Supermarkets",GPC
Statement 20/06/2017 to 17/07/2017,Capital,Dvla Vehicle Tax,30/06/2017,1202.50,Vehicles - Expenditure,Government Services-Not Elsewhere Classified,GPC
Statement 20/06/2017 to 17/07/2017,Capital,Dvla Vehicle Tax,30/06/2017,1202.50,Vehicles - Expenditure,Government Services-Not Elsewhere Classified,GPC
Statement 20/06/2017 to 17/07/2017,Chief Executive,Amazon UK Marketplace,11/07/2017,31.48,Books - General,Book Stores,GPC
Statement 20/06/2017 to 17/07/2017,Chief Executive,Amazon UK Marketplace,23/06/2017,7.82,IT Equipment - General,Miscellaneous and Specialty Retail Stores,GPC
Statement 20/06/2017 to 17/07/2017,Chief Executive,Amazon UK Marketplace,22/06/2017,2.98,Stationery - General,Miscellaneous and Specialty Retail Stores,GPC
Statement 20/06/2017 to 17/07/2017,Chief Executive,Amazon UK Marketplace,23/06/2017,2.54,Stationery - General,Book Stores,GPC
Statement 20/06/2017 to 17/07/2017,Chief Executive,Amazon UK Marketplace,23/06/2017,16.66,Stationery - General,Book Stores,GPC
Statement 20/06/2017 to 17/07/2017,Chief Executive,Amazon UK Marketplace,26/06/2017,47.50,Stationery - General,Book Stores,GPC
Statement 20/06/2017 to 17/07/2017,Chief Executive,Amazon UK Marketplace,05/07/2017,3.67,Stationery - General,Miscellaneous and Specialty Retail Stores,GPC
Statement 20/06/2017 to 17/07/2017,Chief Executive,Amazon UK Marketplace,07/07/2017,2.50,Stationery - General,Miscellaneous and Specialty Retail Stores,GPC
Statement 20/06/2017 to 17/07/2017,Chief Executive,Amazon UK Marketplace,11/07/2017,20.64,Stationery - General,Book Stores,GPC
Statement 20/06/2017 to 17/07/2017,Chief Executive,Amazon.Co.Uk,26/06/2017,13.28,Stationery - General,Miscellaneous and Specialty Retail Stores,GPC
Statement 20/06/2017 to 17/07/2017,Chief Executive,Amz*amazon.Co.Uk,20/06/2017,-34.07,Other Expenditure - General,Direct Marketers - Other,GPC
Statement 20/06/2017 to 17/07/2017,Chief Executive,Amz*amazon.Co.Uk,20/06/2017,-34.07,Other Expenditure - General,Direct Marketers - Other,GPC
Statement 20/06/2017 to 17/07/2017,Chief Executive,Care.Citrixonline.Com,28/06/2017,29.00,IT Equipment - General,Continuity/Subscription Merchants,GPC
Statement 20/06/2017 to 17/07/2017,Chief Executive,Cdata Software Inc,20/06/2017,1030.76,IT Equipment - General,"Computers, Computer Peripheral Equipment, Software",GPC
Statement 20/06/2017 to 17/07/2017,Chief Executive,Central Eng Coop,28/06/2017,33.69,Materials - General,Department Stores,GPC
Statement 20/06/2017 to 17/07/2017,Chief Executive,Central England Co,03/07/2017,12.68,Materials - General,Department Stores,GPC
Statement 20/06/2017 to 17/07/2017,Chief Executive,Charnwood Borough Counci,21/06/2017,3.20,Casual/Essential - General,Automobile Parking Lots and Garages,GPC
Statement 20/06/2017 to 17/07/2017,Chief Executive,Charnwood Borough Counci,23/06/2017,2.20,Casual/Essential - General,Automobile Parking Lots and Garages,GPC
Statement 20/06/2017 to 17/07/2017,Chief Executive,Denios.Co.Uk,10/07/2017,23.00,Operational Equipment - General,"Building Materials, Lumber Stores",GPC
Statement 20/06/2017 to 17/07/2017,Chief Executive,Dyson Limited,06/07/2017,32.08,Materials - General,Electrical and Small Appliance Repair Shops,GPC
Statement 20/06/2017 to 17/07/2017,Chief Executive,East Midlands Chamber,19/06/2017,40.00,Conference - General,Professional Services-Not Elsewhere Classified,GPC
Statement 20/06/2017 to 17/07/2017,Chief Executive,Halfords On Line,13/07/2017,86.66,Operational Equipment - General,Bicycle Shops-Sales and Service,GPC
Statement 20/06/2017 to 17/07/2017,Chief Executive,Hmcourts-Service.G,26/06/2017,40.00,Other Expenditure - General,Fines,GPC
Statement 20/06/2017 to 17/07/2017,Chief Executive,Information not provided,21/06/2017,28.35,IT Equipment - General,Misc-Unknown,GPC
Statement 20/06/2017 to 17/07/2017,Chief Executive,Lcc Catering Services,23/06/2017,7.38,Other Expenditure - General,Government Services-Not Elsewhere Classified,GPC
Statement 20/06/2017 to 17/07/2017,Chief Executive,Ncp Limited,22/06/2017,13.33,Casual/Essential - General,Automobile Parking Lots and Garages,GPC
Statement 20/06/2017 to 17/07/2017,Chief Executive,Nott Emt Carpark,19/06/2017,6.67,Casual/Essential - General,Passenger Railways,GPC
Statement 20/06/2017 to 17/07/2017,Chief Executive,Pitcher & Piano,04/07/2017,11.25,Subsistence - General,"Drinking Places (Alcoholic Beverages)-Bars, Tavern",GPC
Statement 20/06/2017 to 17/07/2017,Chief Executive,Q Park Birmingham Brindle,06/07/2017,27.08,Casual/Essential - General,Automobile Parking Lots and Garages,GPC
Statement 20/06/2017 to 17/07/2017,Chief Executive,Tesco-Stores 2846,14/07/2017,15.35,Materials - General,"Grocery Stores, Supermarkets",GPC
Statement 20/06/2017 to 17/07/2017,Chief Executive,Tramlink Nottingham Limit,03/07/2017,4.00,Casual/Essential - General,Local and Suburban Commuter Pass Trans,GPC
Statement 20/06/2017 to 17/07/2017,Chief Executive,Wickes,21/06/2017,4.41,Hospitality - General,Home Supply Warehouse,GPC
Statement 20/06/2017 to 17/07/2017,Chief Executive,Www.Neopost.Co.Uk,07/07/2017,510.00,Stationery - General,"Stationary, Office Supplies, Printing and Writing",GPC
Statement 20/06/2017 to 17/07/2017,Chief Executive,Www.Pmgltd.Co.Uk,19/06/2017,385.00,Other Expenditure - General,Business Services-Not Elsewhere Classified,GPC
Statement 20/06/2017 to 17/07/2017,Corporate Resources,Amazon UK Marketplace,15/07/2017,73.63,Books - General,Book Stores,GPC
Statement 20/06/2017 to 17/07/2017,Corporate Resources,Amazon UK Marketplace,04/07/2017,12.71,General Equipment - General,Miscellaneous and Specialty Retail Stores,GPC
Statement 20/06/2017 to 17/07/2017,Corporate Resources,Amazon UK Marketplace,05/07/2017,32.66,General Equipment - General,Miscellaneous and Specialty Retail Stores,GPC
Statement 20/06/2017 to 17/07/2017,Corporate Resources,Amazon UK Marketplace,27/06/2017,29.98,IT Equipment - General,Miscellaneous and Specialty Retail Stores,GPC
Statement 20/06/2017 to 17/07/2017,Corporate Resources,Amazon UK Marketplace,29/06/2017,166.96,IT Equipment - Repairs,Miscellaneous and Specialty Retail Stores,GPC
Statement 20/06/2017 to 17/07/2017,Corporate Resources,Amazon UK Marketplace,04/07/2017,19.99,Other Services - General,Book Stores,GPC
Statement 20/06/2017 to 17/07/2017,Corporate Resources,Amazon UK Marketplace,04/07/2017,99.99,Other Services - General,Book Stores,GPC
Statement 20/06/2017 to 17/07/2017,Corporate Resources,Amazon UK Marketplace,05/07/2017,4.99,Stationery - General,Book Stores,GPC
Statement 20/06/2017 to 17/07/2017,Corporate Resources,Amazon UK Marketplace,05/07/2017,22.38,Stationery - General,Book Stores,GPC
Statement 20/06/2017 to 17/07/2017,Corporate Resources,Amazon UK Marketplace,06/07/2017,19.45,Stationery - General,Miscellaneous and Specialty Retail Stores,GPC
Statement 20/06/2017 to 17/07/2017,Corporate Resources,Amazon UK Marketplace,29/06/2017,585.00,Training Expenses - General,Book Stores,GPC
Statement 20/06/2017 to 17/07/2017,Corporate Resources,Amazon UK Retail,29/06/2017,54.15,IT Equipment - Purchase - Hardware,Direct Marketers - Other,GPC
Statement 20/06/2017 to 17/07/2017,Corporate Resources,Amazon UK Retail,29/06/2017,100.00,IT Equipment - Repairs,Direct Marketers - Other,GPC
Statement 20/06/2017 to 17/07/2017,Corporate Resources,Amazon UK Retail Amazon.C,03/07/2017,14.95,Stationery - General,Miscellaneous and Specialty Retail Stores,GPC
Statement 20/06/2017 to 17/07/2017,Corporate Resources,Amazon.Co.Uk,02/07/2017,108.31,Operational Equipment - General,Miscellaneous and Specialty Retail Stores,GPC
Statement 20/06/2017 to 17/07/2017,Corporate Resources,Amazon.Co.Uk,05/07/2017,28.60,Stationery - General,Miscellaneous and Specialty Retail Stores,GPC
Statement 20/06/2017 to 17/07/2017,Corporate Resources,Amazon.Co.Uk,06/07/2017,3.71,Stationery - General,Miscellaneous and Specialty Retail Stores,GPC
Statement 20/06/2017 to 17/07/2017,Corporate Resources,Amz*-Superbookdeals-,19/06/2017,-243.92,Training Expenses - General,Miscellaneous and Specialty Retail Stores,GPC
Statement 20/06/2017 to 17/07/2017,Corporate Resources,Apcoa - Nwr Manchester,14/07/2017,10.00,Public Transport -  Staff - General,Automobile Parking Lots and Garages,GPC
Statement 20/06/2017 to 17/07/2017,Corporate Resources,Apl*/Wrosecar,20/06/2017,4.00,Casual/Essential - General,Taxicabs and Limousines,GPC
Statement 20/06/2017 to 17/07/2017,Corporate Resources,Apl*/Wrosecar,28/06/2017,3.80,Casual/Essential - General,Taxicabs and Limousines,GPC
Statement 20/06/2017 to 17/07/2017,Corporate Resources,Apl*/Wrosecar,03/07/2017,4.60,Casual/Essential - General,Taxicabs and Limousines,GPC
Statement 20/06/2017 to 17/07/2017,Corporate Resources,Apl*/Wrosecar,09/07/2017,4.00,Casual/Essential - General,Taxicabs and Limousines,GPC
Statement 20/06/2017 to 17/07/2017,Corporate Resources,Apl*/Wrosecar,11/07/2017,4.00,Casual/Essential - General,Taxicabs and Limousines,GPC
Statement 20/06/2017 to 17/07/2017,Corporate Resources,Apl*/Wrosecar,12/07/2017,4.00,Casual/Essential - General,Taxicabs and Limousines,GPC
Statement 20/06/2017 to 17/07/2017,Corporate Resources,Apl*/Wrosecar,13/07/2017,4.00,Casual/Essential - General,Taxicabs and Limousines,GPC
Statement 20/06/2017 to 17/07/2017,Corporate Resources,Argos Retail Group,22/06/2017,474.98,Furniture - General,Discount Stores,GPC
Statement 20/06/2017 to 17/07/2017,Corporate Resources,Argos Retail Group,22/06/2017,233.32,Furniture - General,Discount Stores,GPC
Statement 20/06/2017 to 17/07/2017,Corporate Resources,Asda Stores 4477,21/06/2017,1.24,Other Expenditure - General,"Grocery Stores, Supermarkets",GPC
Statement 20/06/2017 to 17/07/2017,Corporate Resources,Asda Stores 4477,21/06/2017,5.34,Other Expenditure - General,"Grocery Stores, Supermarkets",GPC
Statement 20/06/2017 to 17/07/2017,Corporate Resources,Asda Stores 4477,26/06/2017,10.50,Other Expenditure - General,"Grocery Stores, Supermarkets",GPC
Statement 20/06/2017 to 17/07/2017,Corporate Resources,Asda Stores 4477,05/07/2017,1.07,Other Expenditure - General,"Grocery Stores, Supermarkets",GPC
Statement 20/06/2017 to 17/07/2017,Corporate Resources,Asda Stores 4477,05/07/2017,7.55,Other Expenditure - General,"Grocery Stores, Supermarkets",GPC
Statement 20/06/2017 to 17/07/2017,Corporate Resources,Asda Stores 4477,12/07/2017,2.99,Other Expenditure - General,"Grocery Stores, Supermarkets",GPC
Statement 20/06/2017 to 17/07/2017,Corporate Resources,Asda Stores 4477,21/06/2017,3.85,Other Services - General,"Grocery Stores, Supermarkets",GPC
Statement 20/06/2017 to 17/07/2017,Corporate Resources,Asda Superstore,13/07/2017,98.00,Materials - General,"Grocery Stores, Supermarkets",GPC
Statement 20/06/2017 to 17/07/2017,Corporate Resources,Autogrill Leon Kingscross,27/06/2017,7.45,Subsistence - General,"Eating Places, Restaurants",GPC
Statement 20/06/2017 to 17/07/2017,Corporate Resources,Autogrill Leon Kingscross,30/06/2017,8.95,Subsistence - General,"Eating Places, Restaurants",GPC
Statement 20/06/2017 to 17/07/2017,Corporate Resources,Autohome Ltd,14/07/2017,89.25,Other Expenditure - General,Automobile Associations,GPC
Statement 20/06/2017 to 17/07/2017,Corporate Resources,B&m Retail,05/07/2017,16.01,Stationery - General,Discount Stores,GPC
Statement 20/06/2017 to 17/07/2017,Corporate Resources,B&q Direct,21/06/2017,25.00,General Equipment - General,"Building Materials, Lumber Stores",GPC
Statement 20/06/2017 to 17/07/2017,Corporate Resources,B&q Direct,21/06/2017,35.70,General Equipment - General,"Building Materials, Lumber Stores",GPC
Statement 20/06/2017 to 17/07/2017,Corporate Resources,Banner Group Ltd,28/06/2017,140.76,Stationery - General,"Stationery, Office, and School Supply Stores",GPC
Statement 20/06/2017 to 17/07/2017,Corporate Resources,Banner Group Ltd,04/07/2017,24.21,Stationery - General,"Stationery, Office, and School Supply Stores",GPC
Statement 20/06/2017 to 17/07/2017,Corporate Resources,Blorenge Guest House,04/07/2017,215.00,Training Expenses - General,"Lodging-Hotels, Motels, Resorts",GPC
Statement 20/06/2017 to 17/07/2017,Corporate Resources,Brookside Caravans,04/07/2017,45.00,Other Services - General,"Automobile and Truck Dealers-Sales, Service, Repai",GPC
Statement 20/06/2017 to 17/07/2017,Corporate Resources,Campanile,15/07/2017,52.17,Other Expenditure - General,"Lodging-Hotels, Motels, Resorts",GPC
Statement 20/06/2017 to 17/07/2017,Corporate Resources,Cooks Farm Shop,23/06/2017,30.32,Other Services - General,"Lawn and Garden Supply Stores, Nurseries",GPC
Statement 20/06/2017 to 17/07/2017,Corporate Resources,Cooks Farm Shop,12/07/2017,11.95,Protective Clothing & Uniforms - General,"Lawn and Garden Supply Stores, Nurseries",GPC
Statement 20/06/2017 to 17/07/2017,Corporate Resources,Co-Op Group 070412,21/06/2017,22.14,Other Expenditure - General,"Grocery Stores, Supermarkets",GPC
Statement 20/06/2017 to 17/07/2017,Corporate Resources,Co-Op Group 070412,28/06/2017,18.22,Other Expenditure - General,"Grocery Stores, Supermarkets",GPC
Statement 20/06/2017 to 17/07/2017,Corporate Resources,Co-Op Group 070412,05/07/2017,16.31,Other Expenditure - General,"Grocery Stores, Supermarkets",GPC
Statement 20/06/2017 to 17/07/2017,Corporate Resources,Co-Op Late Shop,19/06/2017,2.29,Other Expenditure - General,"Grocery Stores, Supermarkets",GPC
Statement 20/06/2017 to 17/07/2017,Corporate Resources,Co-Op Late Shop,03/07/2017,5.63,Other Expenditure - General,"Grocery Stores, Supermarkets",GPC
Statement 20/06/2017 to 17/07/2017,Corporate Resources,Co-Op Late Shop,26/06/2017,3.05,Other Services - General,"Grocery Stores, Supermarkets",GPC
Statement 20/06/2017 to 17/07/2017,Corporate Resources,Cross Country Trains,26/06/2017,162.80,Training Expenses - General,Passenger Railways,GPC
Statement 20/06/2017 to 17/07/2017,Corporate Resources,Destinet Ltd,28/06/2017,204.00,Publicity/Marketing - General,Advertising Services,GPC
Statement 20/06/2017 to 17/07/2017,Corporate Resources,Dvla Vehicle Tax,23/06/2017,242.50,Road Licences - General,Government Services-Not Elsewhere Classified,GPC
Statement 20/06/2017 to 17/07/2017,Corporate Resources,E Coast Main Ln Co Ltd,07/07/2017,27.00,Casual/Essential - General,Automobile Parking Lots and Garages,GPC
Statement 20/06/2017 to 17/07/2017,Corporate Resources,East Midlands Leicester,26/06/2017,11.67,Public Transport -  Staff - General,Automobile Parking Lots and Garages,GPC
Statement 20/06/2017 to 17/07/2017,Corporate Resources,East Midlands Leicester,11/07/2017,23.33,Public Transport -  Staff - General,Automobile Parking Lots and Garages,GPC
Statement 20/06/2017 to 17/07/2017,Corporate Resources,East Midlands Market Har,26/06/2017,9.58,Casual/Essential - General,Automobile Parking Lots and Garages,GPC
Statement 20/06/2017 to 17/07/2017,Corporate Resources,East Midlands Market Har,20/06/2017,9.58,Public Transport -  Staff - General,Automobile Parking Lots and Garages,GPC
Statement 20/06/2017 to 17/07/2017,Corporate Resources,East Midlands Market Har,20/06/2017,9.58,Public Transport -  Staff - General,Automobile Parking Lots and Garages,GPC
Statement 20/06/2017 to 17/07/2017,Corporate Resources,East Midlands Market Har,20/06/2017,9.58,Public Transport -  Staff - General,Automobile Parking Lots and Garages,GPC
Statement 20/06/2017 to 17/07/2017,Corporate Resources,East Midlands Market Har,22/06/2017,9.58,Public Transport -  Staff - General,Automobile Parking Lots and Garages,GPC
Statement 20/06/2017 to 17/07/2017,Corporate Resources,East Midlands Market Har,27/06/2017,9.58,Public Transport -  Staff - General,Automobile Parking Lots and Garages,GPC
Statement 20/06/2017 to 17/07/2017,Corporate Resources,East Midlands Market Har,27/06/2017,11.50,Public Transport -  Staff - General,Automobile Parking Lots and Garages,GPC
Statement 20/06/2017 to 17/07/2017,Corporate Resources,East Midlands Market Har,28/06/2017,9.58,Public Transport -  Staff - General,Automobile Parking Lots and Garages,GPC
Statement 20/06/2017 to 17/07/2017,Corporate Resources,East Midlands Market Har,28/06/2017,9.58,Public Transport -  Staff - General,Automobile Parking Lots and Garages,GPC
Statement 20/06/2017 to 17/07/2017,Corporate Resources,East Midlands Market Har,29/06/2017,11.50,Public Transport -  Staff - General,Automobile Parking Lots and Garages,GPC
Statement 20/06/2017 to 17/07/2017,Corporate Resources,East Midlands Market Har,03/07/2017,9.58,Public Transport -  Staff - General,Automobile Parking Lots and Garages,GPC
Statement 20/06/2017 to 17/07/2017,Corporate Resources,East Midlands Market Har,05/07/2017,9.58,Public Transport -  Staff - General,Automobile Parking Lots and Garages,GPC
Statement 20/06/2017 to 17/07/2017,Corporate Resources,East Midlands Market Har,13/07/2017,9.58,Public Transport -  Staff - General,Automobile Parking Lots and Garages,GPC
Statement 20/06/2017 to 17/07/2017,Corporate Resources,East Midlands Market Har,14/07/2017,9.58,Public Transport -  Staff - General,Automobile Parking Lots and Garages,GPC
Statement 20/06/2017 to 17/07/2017,Corporate Resources,East Midlands Trai,22/06/2017,95.00,Public Transport -  Staff - General,Passenger Railways,GPC
Statement 20/06/2017 to 17/07/2017,Corporate Resources,East Midlands Trai,11/07/2017,10.00,Public Transport -  Staff - General,Passenger Railways,GPC
Statement 20/06/2017 to 17/07/2017,Corporate Resources,East Midlands Trains,10/07/2017,25.30,Public Transport -  Staff - General,Passenger Railways,GPC
Statement 20/06/2017 to 17/07/2017,Corporate Resources,East Midlands Trains,10/07/2017,25.30,Public Transport -  Staff - General,Passenger Railways,GPC
Statement 20/06/2017 to 17/07/2017,Corporate Resources,East Midlands Trains,10/07/2017,25.30,Public Transport -  Staff - General,Passenger Railways,GPC
Statement 20/06/2017 to 17/07/2017,Corporate Resources,East Midlands Trains,10/07/2017,25.30,Public Transport -  Staff - General,Passenger Railways,GPC
Statement 20/06/2017 to 17/07/2017,Corporate Resources,East Midlands Trains,10/07/2017,25.30,Public Transport -  Staff - General,Passenger Railways,GPC
Statement 20/06/2017 to 17/07/2017,Corporate Resources,Eb *approaching Busine,27/06/2017,11.21,Training Expenses - General,Business Services-Not Elsewhere Classified,GPC
Statement 20/06/2017 to 17/07/2017,Corporate Resources,Eb *introduction To Cr,27/06/2017,22.42,Training Expenses - General,Business Services-Not Elsewhere Classified,GPC
Statement 20/06/2017 to 17/07/2017,Corporate Resources,Emap Ltd-Subscriptions,04/07/2017,224.10,Subscriptions - General,Miscellaneous Publishing and  Printing,GPC
Statement 20/06/2017 to 17/07/2017,Corporate Resources,Etsy.Com - Midwaleswillow,28/06/2017,16.90,Other Services - General,Miscellaneous Apparel and Accessory Stores,GPC
Statement 20/06/2017 to 17/07/2017,Corporate Resources,Facebk J8y5ycwse2,30/06/2017,72.27,Advertising - General,Advertising Services,GPC
Statement 20/06/2017 to 17/07/2017,Corporate Resources,First Response First Aid,30/06/2017,55.00,Training Expenses - General,Schools and Educational Services-Not Elsewhere Cla,GPC
Statement 20/06/2017 to 17/07/2017,Corporate Resources,Fleurs En Fleur,20/06/2017,67.75,Other Equipment & Materials - General,Florists,GPC
Statement 20/06/2017 to 17/07/2017,Corporate Resources,Fleurs En Fleur,23/06/2017,27.00,Other Equipment & Materials - General,Florists,GPC
Statement 20/06/2017 to 17/07/2017,Corporate Resources,Fleurs En Fleur,03/07/2017,41.20,Other Equipment & Materials - General,Florists,GPC
Statement 20/06/2017 to 17/07/2017,Corporate Resources,Flexera Software Ltd,26/06/2017,764.00,IT Equipment - Maintenance,Computer Software Stores,GPC
Statement 20/06/2017 to 17/07/2017,Corporate Resources,Gov.Uk/dart-Charge,14/07/2017,6.00,Other Expenditure - General,"Bridge and Road Fees, Tolls",GPC
Statement 20/06/2017 to 17/07/2017,Corporate Resources,Halfords 0428,29/06/2017,4.98,Other Expenditure - General,Bicycle Shops-Sales and Service,GPC
Statement 20/06/2017 to 17/07/2017,Corporate Resources,Hampton By Hilton Bristol,27/06/2017,302.00,Training Expenses - General,Hampton Inn Hotels,GPC
Statement 20/06/2017 to 17/07/2017,Corporate Resources,Hancock Cash & Carry,07/07/2017,422.14,Materials - General,Nondurable Goods Not Elsewhere Classified,GPC
Statement 20/06/2017 to 17/07/2017,Corporate Resources,Harlow Bros Ltd,29/06/2017,23.65,Other Expenditure - General,"Building Materials, Lumber Stores",GPC
Statement 20/06/2017 to 17/07/2017,Corporate Resources,Harlow Bros Ltd,10/07/2017,4.74,Other Expenditure - General,"Building Materials, Lumber Stores",GPC
Statement 20/06/2017 to 17/07/2017,Corporate Resources,Harlow Bros Ltd,28/06/2017,75.73,Other Services - General,"Building Materials, Lumber Stores",GPC
Statement 20/06/2017 to 17/07/2017,Corporate Resources,Harlow Bros Ltd,05/07/2017,67.17,Other Services - General,"Building Materials, Lumber Stores",GPC
Statement 20/06/2017 to 17/07/2017,Corporate Resources,Harlow Bros Ltd,12/07/2017,7.58,Other Services - General,"Building Materials, Lumber Stores",GPC
Statement 20/06/2017 to 17/07/2017,Corporate Resources,Harlow Bros Ltd,12/07/2017,18.43,Other Services - General,"Building Materials, Lumber Stores",GPC
Statement 20/06/2017 to 17/07/2017,Corporate Resources,Higgotts,07/07/2017,9.96,Operational Equipment - General,Landscaping and Horticultural Services,GPC
Statement 20/06/2017 to 17/07/2017,Corporate Resources,Higgotts,23/06/2017,10.82,Other Services - General,Landscaping and Horticultural Services,GPC
Statement 20/06/2017 to 17/07/2017,Corporate Resources,Higgotts,01/07/2017,7.50,Other Services - General,Landscaping and Horticultural Services,GPC
Statement 20/06/2017 to 17/07/2017,Corporate Resources,Higgotts,03/07/2017,24.92,Other Services - General,Landscaping and Horticultural Services,GPC
Statement 20/06/2017 to 17/07/2017,Corporate Resources,Home Bargains,15/07/2017,6.63,Other Services - General,Hardware Stores,GPC
Statement 20/06/2017 to 17/07/2017,Corporate Resources,Hootsuite Media Inc.,24/06/2017,118.36,Publicity/Marketing - General,Business Services-Not Elsewhere Classified,GPC
Statement 20/06/2017 to 17/07/2017,Corporate Resources,Information not provided,29/06/2017,7.74,Other Expenditure - General,Misc-Unknown,GPC
Statement 20/06/2017 to 17/07/2017,Corporate Resources,Information not provided,04/07/2017,4.06,Other Expenditure - General,Misc-Unknown,GPC
Statement 20/06/2017 to 17/07/2017,Corporate Resources,Information not provided,17/07/2017,1.72,Other Expenditure - General,Misc-Unknown,GPC
Statement 20/06/2017 to 17/07/2017,Corporate Resources,Information not provided,26/06/2017,3.25,Publicity/Marketing - General,Misc-Unknown,GPC
Statement 20/06/2017 to 17/07/2017,Corporate Resources,Information not provided,26/05/2017,-30.65,Subsistence - General,Misc-Unknown,GPC
Statement 20/06/2017 to 17/07/2017,Corporate Resources,Information not provided,28/05/2017,-17.25,Subsistence - General,Misc-Unknown,GPC
Statement 20/06/2017 to 17/07/2017,Corporate Resources,Jansen Display Ltd,06/07/2017,45.45,General Equipment - General,Commercial Equipment Not Elsewhere Classified,GPC
Statement 20/06/2017 to 17/07/2017,Corporate Resources,Jurys Inn Manchester Fron,13/07/2017,191.67,Conference - General,"Lodging-Hotels, Motels, Resorts",GPC
Statement 20/06/2017 to 17/07/2017,Corporate Resources,Jurys Inn Nottingham Fron,13/07/2017,190.65,Training Expenses - General,"Lodging-Hotels, Motels, Resorts",GPC
Statement 20/06/2017 to 17/07/2017,Corporate Resources,Jurys Inn Sheffield Front,03/07/2017,83.33,Conference - General,"Lodging-Hotels, Motels, Resorts",GPC
Statement 20/06/2017 to 17/07/2017,Corporate Resources,K Borley & Son Ltd,12/07/2017,6.00,Other Expenditure - General,Hardware Equipment and Supplies,GPC
Statement 20/06/2017 to 17/07/2017,Corporate Resources,Lcc Beacon Hill County,01/07/2017,1.67,Other Services - General,Government Services-Not Elsewhere Classified,GPC
Statement 20/06/2017 to 17/07/2017,Corporate Resources,Le Fevres Stores,08/07/2017,7.38,Other Expenditure - General,"Grocery Stores, Supermarkets",GPC
Statement 20/06/2017 to 17/07/2017,Corporate Resources,Linkedin-263*9243696,14/07/2017,227.94,Recruitment Advertising - General,Continuity/Subscription Merchants,GPC
Statement 20/06/2017 to 17/07/2017,Corporate Resources,Loughborough Sst,28/06/2017,41.30,Public Transport -  Staff - General,Passenger Railways,GPC
Statement 20/06/2017 to 17/07/2017,Corporate Resources,Loughborough Sst,13/07/2017,41.30,Public Transport -  Staff - General,Passenger Railways,GPC
Statement 20/06/2017 to 17/07/2017,Corporate Resources,Lul Ticket Machine,04/07/2017,50.00,Casual/Essential - General,Passenger Railways,GPC
Statement 20/06/2017 to 17/07/2017,Corporate Resources,Lul Ticket Machine,19/06/2017,50.00,Public Transport -  Staff - General,Passenger Railways,GPC
Statement 20/06/2017 to 17/07/2017,Corporate Resources,Lul Ticket Machine,22/06/2017,12.30,Public Transport -  Staff - General,Passenger Railways,GPC
Statement 20/06/2017 to 17/07/2017,Corporate Resources,Lul Ticket Machine,27/06/2017,17.50,Public Transport -  Staff - General,Passenger Railways,GPC
Statement 20/06/2017 to 17/07/2017,Corporate Resources,Lul Ticket Machine,30/06/2017,10.00,Public Transport -  Staff - General,Passenger Railways,GPC
Statement 20/06/2017 to 17/07/2017,Corporate Resources,Lul Ticket Machine,11/07/2017,20.00,Public Transport -  Staff - General,Passenger Railways,GPC
Statement 20/06/2017 to 17/07/2017,Corporate Resources,M&s Simply Food - Ssp,20/06/2017,7.75,Subsistence - General,"Miscellaneous Food Stores-Convenience Stores, Mark",GPC
Statement 20/06/2017 to 17/07/2017,Corporate Resources,M&s Simply Food-Ssp,07/07/2017,8.25,Public Transport -  Staff - General,"Miscellaneous Food Stores-Convenience Stores, Mark",GPC
Statement 20/06/2017 to 17/07/2017,Corporate Resources,M&s Simply Food-Ssp,07/07/2017,6.80,Subsistence - General,"Miscellaneous Food Stores-Convenience Stores, Mark",GPC
Statement 20/06/2017 to 17/07/2017,Corporate Resources,Mailbox Car Park Limited,11/07/2017,22.75,Other Expenditure - General,Automobile Parking Lots and Garages,GPC
Statement 20/06/2017 to 17/07/2017,Corporate Resources,Mailbox Car Park Limited,11/07/2017,24.08,Other Expenditure - General,Automobile Parking Lots and Garages,GPC
Statement 20/06/2017 to 17/07/2017,Corporate Resources,Malmaison Bham,10/07/2017,90.90,Subsistence - General,"Lodging-Hotels, Motels, Resorts",GPC
Statement 20/06/2017 to 17/07/2017,Corporate Resources,Manchester Sst,27/06/2017,27.70,Public Transport -  Staff - General,Passenger Railways,GPC
Statement 20/06/2017 to 17/07/2017,Corporate Resources,Mdh Sports,07/07/2017,44.58,Stationery - General,"Sewing, Needlework, Fabric, and Piece Goods Stores",GPC
Statement 20/06/2017 to 17/07/2017,Corporate Resources,Metrolink Tfgm,20/06/2017,3.10,Public Transport -  Staff - General,Transportation Services-not elsewhere,GPC
Statement 20/06/2017 to 17/07/2017,Corporate Resources,Metrolink Tfgm,27/06/2017,3.90,Public Transport -  Staff - General,Transportation Services-not elsewhere,GPC
Statement 20/06/2017 to 17/07/2017,Corporate Resources,Metrolink Tfgm,29/06/2017,3.10,Public Transport -  Staff - General,Transportation Services-not elsewhere,GPC
Statement 20/06/2017 to 17/07/2017,Corporate Resources,Metrolink Tfgm,03/07/2017,3.90,Public Transport -  Staff - General,Transportation Services-not elsewhere,GPC
Statement 20/06/2017 to 17/07/2017,Corporate Resources,Metrolink Tfgm,04/07/2017,3.90,Public Transport -  Staff - General,Transportation Services-not elsewhere,GPC
Statement 20/06/2017 to 17/07/2017,Corporate Resources,Metrolink Tfgm,06/07/2017,2.80,Public Transport -  Staff - General,Transportation Services-not elsewhere,GPC
Statement 20/06/2017 to 17/07/2017,Corporate Resources,Metrolink Tfgm,10/07/2017,2.80,Public Transport -  Staff - General,Transportation Services-not elsewhere,GPC
Statement 20/06/2017 to 17/07/2017,Corporate Resources,Metrolink Tfgm,11/07/2017,2.80,Public Transport -  Staff - General,Transportation Services-not elsewhere,GPC
Statement 20/06/2017 to 17/07/2017,Corporate Resources,Metrolink Tvm,19/06/2017,3.90,Public Transport -  Staff - General,"Bus Lines, Charters, Tour Buses",GPC
Statement 20/06/2017 to 17/07/2017,Corporate Resources,Msft *<e02003zk39>,01/07/2017,188.87,IT Equipment - Software,"Computers, Computer Peripheral Equipment, Software",GPC
Statement 20/06/2017 to 17/07/2017,Corporate Resources,Nfps Ltd,20/06/2017,1800.00,Training Expenses - General,"Management, Consulting and Public Relations Servic",GPC
Statement 20/06/2017 to 17/07/2017,Corporate Resources,Office Outlet,06/07/2017,79.99,Stationery - General,"Stationery, Office, and School Supply Stores",GPC
Statement 20/06/2017 to 17/07/2017,Corporate Resources,Osbornes Oadby,13/07/2017,12.49,Stationery - General,"Stationery, Office, and School Supply Stores",GPC
Statement 20/06/2017 to 17/07/2017,Corporate Resources,Ottoman,06/07/2017,32.00,Subsistence - General,"Eating Places, Restaurants",GPC
Statement 20/06/2017 to 17/07/2017,Corporate Resources,Oyster Autotopup,22/06/2017,20.00,Public Transport -  Staff - General,Passenger Railways,GPC
Statement 20/06/2017 to 17/07/2017,Corporate Resources,Oyster Autotopup,09/07/2017,20.00,Public Transport -  Staff - General,Passenger Railways,GPC
Statement 20/06/2017 to 17/07/2017,Corporate Resources,Oyster Bus Autotop,28/06/2017,20.00,Public Transport -  Staff - General,Passenger Railways,GPC
Statement 20/06/2017 to 17/07/2017,Corporate Resources,Oyster Bus Autotop,05/07/2017,20.00,Public Transport -  Staff - General,Passenger Railways,GPC
Statement 20/06/2017 to 17/07/2017,Corporate Resources,P&o Ferries Ltd,15/07/2017,9.99,Other Expenditure - General,"Gift, Card, Novelty, and Souvenir Shops",GPC
Statement 20/06/2017 to 17/07/2017,Corporate Resources,Pasty Shop,11/07/2017,4.99,Subsistence - General,Fast-Food Restaurants (Quick Payment Service Pilot,GPC
Statement 20/06/2017 to 17/07/2017,Corporate Resources,Paypal *akendiuklim,27/06/2017,475.00,Training Expenses - General,"Management, Consulting and Public Relations Servic",GPC
Statement 20/06/2017 to 17/07/2017,Corporate Resources,Paypal *celesse Ltd,10/07/2017,1.75,Materials - General,Variety Stores,GPC
Statement 20/06/2017 to 17/07/2017,Corporate Resources,Paypal *museumsassc,22/06/2017,125.00,Training Expenses - General,Charitable and Social Service Organizations,GPC
Statement 20/06/2017 to 17/07/2017,Corporate Resources,Paypal *successinsc,13/07/2017,149.97,Stationery - General,"Management, Consulting and Public Relations Servic",GPC
Statement 20/06/2017 to 17/07/2017,Corporate Resources,Pizza Express,19/06/2017,12.35,Subsistence - General,"Eating Places, Restaurants",GPC
Statement 20/06/2017 to 17/07/2017,Corporate Resources,Pizza Union,29/06/2017,6.21,Subsistence - General,"Eating Places, Restaurants",GPC
Statement 20/06/2017 to 17/07/2017,Corporate Resources,Post Office Counter,28/06/2017,12.98,Other Services - General,Postage Stamps,GPC
Statement 20/06/2017 to 17/07/2017,Corporate Resources,Poundstretcher 292,04/07/2017,10.47,Other Expenditure - General,"Drapery, Window Coverings, and Upholstery Stores",GPC
Statement 20/06/2017 to 17/07/2017,Corporate Resources,Premier Catering Equip,05/07/2017,157.00,Other Equipment & Materials - General,Electrical Parts and Equipment,GPC
Statement 20/06/2017 to 17/07/2017,Corporate Resources,Premier Inn44521250,20/06/2017,-44.99,Training Expenses - General,PREMIER TRAVEL,GPC
Statement 20/06/2017 to 17/07/2017,Corporate Resources,Premier Inn44521250,05/07/2017,68.99,Training Expenses - General,PREMIER TRAVEL,GPC
Statement 20/06/2017 to 17/07/2017,Corporate Resources,Primark 648,06/07/2017,28.00,Stationery - General,Family Clothing Stores,GPC
Statement 20/06/2017 to 17/07/2017,Corporate Resources,Przcharge.Prezi.Com,03/07/2017,147.56,IT Equipment - Software,"Computers, Computer Peripheral Equipment, Software",GPC
Statement 20/06/2017 to 17/07/2017,Corporate Resources,R Massey & Son Ltd,10/07/2017,12.17,Other Expenditure - General,Hardware Stores,GPC
Statement 20/06/2017 to 17/07/2017,Corporate Resources,Sainsburys S/mkt,04/07/2017,37.40,Provisions - General,"Grocery Stores, Supermarkets",GPC
Statement 20/06/2017 to 17/07/2017,Corporate Resources,Sainsburys S/mkts,29/06/2017,2.80,IT Equipment - General,"Grocery Stores, Supermarkets",GPC
Statement 20/06/2017 to 17/07/2017,Corporate Resources,Sainsburys S/mkts,26/06/2017,17.00,Other Services - General,"Grocery Stores, Supermarkets",GPC
Statement 20/06/2017 to 17/07/2017,Corporate Resources,Sainsburys S/mkts,14/07/2017,42.70,Provisions - General,"Grocery Stores, Supermarkets",GPC
Statement 20/06/2017 to 17/07/2017,Corporate Resources,Saturn Machine Knives Lt,21/06/2017,26.39,Other Services - General,Miscellaneous and Specialty Retail Stores,GPC
Statement 20/06/2017 to 17/07/2017,Corporate Resources,Screwfix,21/06/2017,6.91,Other Expenditure - General,"Building Materials, Lumber Stores",GPC
Statement 20/06/2017 to 17/07/2017,Corporate Resources,Screwfix,03/07/2017,80.81,Other Services - General,"Building Materials, Lumber Stores",GPC
Statement 20/06/2017 to 17/07/2017,Corporate Resources,Screwfix,12/07/2017,30.33,Other Services - General,"Building Materials, Lumber Stores",GPC
Statement 20/06/2017 to 17/07/2017,Corporate Resources,Screwfix Direct Lt,12/07/2017,14.97,Other Expenditure - General,"Building Materials, Lumber Stores",GPC
Statement 20/06/2017 to 17/07/2017,Corporate Resources,Screwfix Direct Lt,16/07/2017,9.98,Other Services - General,"Building Materials, Lumber Stores",GPC
Statement 20/06/2017 to 17/07/2017,Corporate Resources,Screwfix Direct Lt,10/07/2017,16.89,R & M of Buildings - General,"Building Materials, Lumber Stores",GPC
Statement 20/06/2017 to 17/07/2017,Corporate Resources,Screwfix Direct Lt,10/07/2017,-6.28,R & M of Buildings - General,"Building Materials, Lumber Stores",GPC
Statement 20/06/2017 to 17/07/2017,Corporate Resources,Skillbase First Aid,12/07/2017,109.99,Training Expenses - General,Computer Software Stores,GPC
Statement 20/06/2017 to 17/07/2017,Corporate Resources,Slb Supplies Limit,23/06/2017,25.95,Other Services - General,Pet Shops-Pet Food and Supplies,GPC
Statement 20/06/2017 to 17/07/2017,Corporate Resources,Starbucks,20/06/2017,10.60,Subsistence - General,Fast-Food Restaurants (Quick Payment Service Pilot,GPC
Statement 20/06/2017 to 17/07/2017,Corporate Resources,Staunton Harold Nu,19/06/2017,9.99,Other Services - General,"Lawn and Garden Supply Stores, Nurseries",GPC
Statement 20/06/2017 to 17/07/2017,Corporate Resources,Sucuri Website Security,28/06/2017,281.43,Other Expenditure - General,Computer Software Stores,GPC
Statement 20/06/2017 to 17/07/2017,Corporate Resources,Surveymonkey,11/07/2017,21.67,Other Expenditure - General,Computer and Data Processing Services,GPC
Statement 20/06/2017 to 17/07/2017,Corporate Resources,T W Kempton(Corporate,05/07/2017,128.67,Protective Clothing & Uniforms - General,Men's and Boy's Clothing and Furnishings Store,GPC
Statement 20/06/2017 to 17/07/2017,Corporate Resources,T W Kempton(Corporate,05/07/2017,128.67,Protective Clothing & Uniforms - General,Men's and Boy's Clothing and Furnishings Store,GPC
Statement 20/06/2017 to 17/07/2017,Corporate Resources,Tesco Store 2886,21/06/2017,49.00,Provisions - General,"Grocery Stores, Supermarkets",GPC
Statement 20/06/2017 to 17/07/2017,Corporate Resources,Tesco Stores 2849,08/07/2017,31.70,Contract Catering - General,"Grocery Stores, Supermarkets",GPC
Statement 20/06/2017 to 17/07/2017,Corporate Resources,Tesco Stores 2849,27/06/2017,3.00,Other Expenditure - General,"Grocery Stores, Supermarkets",GPC
Statement 20/06/2017 to 17/07/2017,Corporate Resources,Tesco Stores 2849,01/07/2017,17.23,Other Expenditure - General,"Grocery Stores, Supermarkets",GPC
Statement 20/06/2017 to 17/07/2017,Corporate Resources,Tesco Stores 2849,13/07/2017,4.00,Provisions - General,"Grocery Stores, Supermarkets",GPC
Statement 20/06/2017 to 17/07/2017,Corporate Resources,Tesco Stores 6814,08/07/2017,12.50,Stationery - General,"Grocery Stores, Supermarkets",GPC
Statement 20/06/2017 to 17/07/2017,Corporate Resources,Tesco Stores 6854,29/06/2017,0.45,Other Expenditure - General,"Grocery Stores, Supermarkets",GPC
Statement 20/06/2017 to 17/07/2017,Corporate Resources,Tesco-Stores 2846,10/07/2017,36.00,Provisions - General,"Grocery Stores, Supermarkets",GPC
Statement 20/06/2017 to 17/07/2017,Corporate Resources,The Chartered Institut,30/06/2017,200.00,Other Expenditure - General,Membership Organizations-Not Elsewhere Classified,GPC
Statement 20/06/2017 to 17/07/2017,Corporate Resources,The Range,05/07/2017,55.67,Other Services - General,Department Stores,GPC
Statement 20/06/2017 to 17/07/2017,Corporate Resources,Totaljobs Group Ltd,28/06/2017,600.00,Recruitment Advertising - General,Miscellaneous Publishing and  Printing,GPC
Statement 20/06/2017 to 17/07/2017,Corporate Resources,Trainline,26/06/2017,16.27,Public Transport -  Staff - General,Passenger Railways,GPC
Statement 20/06/2017 to 17/07/2017,Corporate Resources,Travelodge Gb0000,27/06/2017,140.42,Training Expenses - General,Travelodge,GPC
Statement 20/06/2017 to 17/07/2017,Corporate Resources,Uber Trip Uhq4a Help.Uber,04/07/2017,8.21,Public Transport -  Staff - General,Taxicabs and Limousines,GPC
Statement 20/06/2017 to 17/07/2017,Corporate Resources,Uber Trip Zxuln Help.Uber,19/06/2017,8.20,Casual/Essential - General,Taxicabs and Limousines,GPC
Statement 20/06/2017 to 17/07/2017,Corporate Resources,Upt-East Midlands Trn-Lb,20/06/2017,10.00,Public Transport -  Staff - General,Professional Services-Not Elsewhere Classified,GPC
Statement 20/06/2017 to 17/07/2017,Corporate Resources,Upt-East Midlands Trn-Lb,22/06/2017,12.00,Public Transport -  Staff - General,Professional Services-Not Elsewhere Classified,GPC
Statement 20/06/2017 to 17/07/2017,Corporate Resources,Upt-East Midlands Trn-Lb,28/06/2017,10.00,Public Transport -  Staff - General,Professional Services-Not Elsewhere Classified,GPC
Statement 20/06/2017 to 17/07/2017,Corporate Resources,Upt-East Midlands Trn-Lb,11/07/2017,20.00,Public Transport -  Staff - General,Professional Services-Not Elsewhere Classified,GPC
Statement 20/06/2017 to 17/07/2017,Corporate Resources,Upt-East Midlands Trn-Lb,13/07/2017,10.00,Public Transport -  Staff - General,Professional Services-Not Elsewhere Classified,GPC
Statement 20/06/2017 to 17/07/2017,Corporate Resources,Waitrose 141,05/07/2017,5.06,Other Equipment & Materials - General,"Grocery Stores, Supermarkets",GPC
Statement 20/06/2017 to 17/07/2017,Corporate Resources,Waitrose 619,30/06/2017,1.88,Subsistence - General,"Grocery Stores, Supermarkets",GPC
Statement 20/06/2017 to 17/07/2017,Corporate Resources,Webury.Com,21/06/2017,79.17,Protective Clothing & Uniforms - General,Family Clothing Stores,GPC
Statement 20/06/2017 to 17/07/2017,Corporate Resources,West Coast Trains,06/07/2017,12.00,Casual/Essential - General,Automobile Parking Lots and Garages,GPC
Statement 20/06/2017 to 17/07/2017,Corporate Resources,Wickes,22/06/2017,19.10,Other Expenditure - General,"Building Materials, Lumber Stores",GPC
Statement 20/06/2017 to 17/07/2017,Corporate Resources,Wickes,08/07/2017,30.00,R & M of Buildings - General,Home Supply Warehouse,GPC
Statement 20/06/2017 to 17/07/2017,Corporate Resources,Wilko Retail Limit,20/06/2017,5.00,Materials - General,Household Appliance Stores,GPC
Statement 20/06/2017 to 17/07/2017,Corporate Resources,Wilko Retail Limit,19/06/2017,11.35,Other Services - General,Household Appliance Stores,GPC
Statement 20/06/2017 to 17/07/2017,Corporate Resources,Wilko Retail Limit,05/07/2017,2.70,Stationery - General,Household Appliance Stores,GPC
Statement 20/06/2017 to 17/07/2017,Corporate Resources,Wm Morrison 054,24/06/2017,22.42,Other Expenditure - General,"Grocery Stores, Supermarkets",GPC
Statement 20/06/2017 to 17/07/2017,Corporate Resources,Wm Morrison 054,03/07/2017,11.60,Other Expenditure - General,"Grocery Stores, Supermarkets",GPC
Statement 20/06/2017 to 17/07/2017,Corporate Resources,Wm Morrison 054,08/07/2017,3.17,Other Expenditure - General,"Grocery Stores, Supermarkets",GPC
Statement 20/06/2017 to 17/07/2017,Corporate Resources,Wm Morrison 054,09/07/2017,7.35,Other Expenditure - General,"Grocery Stores, Supermarkets",GPC
Statement 20/06/2017 to 17/07/2017,Corporate Resources,Www Oppassessment Eu Com,06/07/2017,327.60,Hospitality - General,Business Services-Not Elsewhere Classified,GPC
Statement 20/06/2017 to 17/07/2017,Corporate Resources,Www Oppassessment Eu Com,20/06/2017,252.00,Training Expenses - General,Business Services-Not Elsewhere Classified,GPC
Statement 20/06/2017 to 17/07/2017,Corporate Resources,Www Oppassessment Eu Com,27/06/2017,420.00,Training Expenses - General,Business Services-Not Elsewhere Classified,GPC
Statement 20/06/2017 to 17/07/2017,Corporate Resources,Www Oppassessment Eu Com,06/07/2017,327.60,Training Expenses - General,Business Services-Not Elsewhere Classified,GPC
Statement 20/06/2017 to 17/07/2017,Corporate Resources,Www Oppassessment Eu Com,11/07/2017,42.00,Training Expenses - General,Business Services-Not Elsewhere Classified,GPC
Statement 20/06/2017 to 17/07/2017,Corporate Resources,Www.Abbeystationery.Co,30/06/2017,85.49,Training Expenses - General,"Stationary, Office Supplies, Printing and Writing",GPC
Statement 20/06/2017 to 17/07/2017,Corporate Resources,Www.Argos.Co.Uk,22/06/2017,355.78,Furniture - General,Discount Stores,GPC
Statement 20/06/2017 to 17/07/2017,Corporate Resources,Www.Argos.Co.Uk,22/06/2017,349.99,Furniture - General,Discount Stores,GPC
Statement 20/06/2017 to 17/07/2017,Corporate Resources,Www.Argos.Co.Uk,22/06/2017,349.99,Furniture - General,Discount Stores,GPC
Statement 20/06/2017 to 17/07/2017,Corporate Resources,Www.Argos.Co.Uk,22/06/2017,349.99,Furniture - General,Discount Stores,GPC
Statement 20/06/2017 to 17/07/2017,Corporate Resources,Www.Commidea.Com,30/06/2017,96.97,IT Equipment - General,Computer and Data Processing Services,GPC
Statement 20/06/2017 to 17/07/2017,Corporate Resources,Www.Local.Gov.Uk,29/06/2017,105.00,Training Expenses - General,Business Services-Not Elsewhere Classified,GPC
Statement 20/06/2017 to 17/07/2017,Corporate Resources,Www.Publicpolicyexchan,21/06/2017,424.00,Training Expenses - General,Business Services-Not Elsewhere Classified,GPC
Statement 20/06/2017 to 17/07/2017,Corporate Resources,Www.Ryman.Co.Uk,19/06/2017,17.49,IT Equipment - Purchase - Hardware,"Stationery, Office, and School Supply Stores",GPC
Statement 20/06/2017 to 17/07/2017,Corporate Resources,Www.Superbreak.Com,06/07/2017,265.50,Training Expenses - General,Travel Agencies,GPC
Statement 20/06/2017 to 17/07/2017,Corporate Resources,Www.Superbreak.Com,06/07/2017,265.50,Training Expenses - General,Travel Agencies,GPC
Statement 20/06/2017 to 17/07/2017,Corporate Resources,Www.Superbreak.Com,06/07/2017,265.50,Training Expenses - General,Travel Agencies,GPC
Statement 20/06/2017 to 17/07/2017,Corporate Resources,Www.Superfi.Co.Uk,11/07/2017,139.95,Materials - General,Household Appliance Stores,GPC
Statement 20/06/2017 to 17/07/2017,Corporate Resources,Www.Thesoccerstore.Co.Uk,29/06/2017,23.29,Operational Equipment - General,Sporting Goods Stores,GPC
Statement 20/06/2017 to 17/07/2017,Corporate Resources,Wwwkindmindcouk,19/06/2017,220.00,Training Expenses - General,Professional Services-Not Elsewhere Classified,GPC
Statement 20/06/2017 to 17/07/2017,E&T,Amazon UK Marketplace,25/06/2017,5.35,Books - General,Book Stores,GPC
Statement 20/06/2017 to 17/07/2017,E&T,Amazon UK Marketplace,14/07/2017,5.58,Books - General,Book Stores,GPC
Statement 20/06/2017 to 17/07/2017,E&T,Amazon UK Marketplace,14/07/2017,9.49,Books - General,Book Stores,GPC
Statement 20/06/2017 to 17/07/2017,E&T,Amazon UK Marketplace,05/07/2017,3.80,Other Equipment & Materials - General,Miscellaneous and Specialty Retail Stores,GPC
Statement 20/06/2017 to 17/07/2017,E&T,Amazon UK Marketplace,06/07/2017,9.05,Other Equipment & Materials - General,Book Stores,GPC
Statement 20/06/2017 to 17/07/2017,E&T,Amazon UK Marketplace,06/07/2017,15.00,Other Equipment & Materials - General,Book Stores,GPC
Statement 20/06/2017 to 17/07/2017,E&T,Amazon UK Marketplace,01/07/2017,21.57,Stationery - General,Miscellaneous and Specialty Retail Stores,GPC
Statement 20/06/2017 to 17/07/2017,E&T,Amazon UK Marketplace,28/06/2017,17.04,Telephones - Mobile Phones,Book Stores,GPC
Statement 20/06/2017 to 17/07/2017,E&T,Amazon UK Marketplace,28/06/2017,66.62,Telephones - Mobile Phones,Miscellaneous and Specialty Retail Stores,GPC
Statement 20/06/2017 to 17/07/2017,E&T,Amazon UK Marketplace,07/07/2017,15.93,Telephones - Mobile Phones,Miscellaneous and Specialty Retail Stores,GPC
Statement 20/06/2017 to 17/07/2017,E&T,Amazon UK Retail,05/07/2017,62.46,Other Expenditure - General,Direct Marketers - Other,GPC
Statement 20/06/2017 to 17/07/2017,E&T,Amazon UK Retail,09/07/2017,10.51,Stationery - General,Direct Marketers - Other,GPC
Statement 20/06/2017 to 17/07/2017,E&T,Amazon UK Retail Amazon.C,11/07/2017,21.16,IT Equipment - General,Miscellaneous and Specialty Retail Stores,GPC
Statement 20/06/2017 to 17/07/2017,E&T,Amazon.Co.Uk,26/06/2017,22.99,Materials - General,Miscellaneous and Specialty Retail Stores,GPC
Statement 20/06/2017 to 17/07/2017,E&T,Argos Retail Group,19/06/2017,28.94,Materials - General,Discount Stores,GPC
Statement 20/06/2017 to 17/07/2017,E&T,Argos Retail Group,19/06/2017,129.99,Materials - General,Discount Stores,GPC
Statement 20/06/2017 to 17/07/2017,E&T,Bikeability Materials,27/06/2017,1211.63,General Equipment - General,Bicycle Shops-Sales and Service,GPC
Statement 20/06/2017 to 17/07/2017,E&T,Cartridge Save,21/06/2017,160.32,Materials - General,"Stationary, Office Supplies, Printing and Writing",GPC
Statement 20/06/2017 to 17/07/2017,E&T,Central Eng Coop,07/07/2017,7.15,Other Expenditure - General,Department Stores,GPC
Statement 20/06/2017 to 17/07/2017,E&T,Chartered Inst Of,22/06/2017,875.00,Training Expenses - General,Professional Services-Not Elsewhere Classified,GPC
Statement 20/06/2017 to 17/07/2017,E&T,Dvla Vehicle Tax,23/06/2017,167.50,Road Licences - General,Government Services-Not Elsewhere Classified,GPC
Statement 20/06/2017 to 17/07/2017,E&T,Dvla Vehicle Tax,23/06/2017,242.50,Road Licences - General,Government Services-Not Elsewhere Classified,GPC
Statement 20/06/2017 to 17/07/2017,E&T,Dvla Vehicle Tax,23/06/2017,167.50,Road Licences - General,Government Services-Not Elsewhere Classified,GPC
Statement 20/06/2017 to 17/07/2017,E&T,Dvla Vehicle Tax,23/06/2017,242.50,Road Licences - General,Government Services-Not Elsewhere Classified,GPC
Statement 20/06/2017 to 17/07/2017,E&T,Dvla Vehicle Tax,23/06/2017,242.50,Road Licences - General,Government Services-Not Elsewhere Classified,GPC
Statement 20/06/2017 to 17/07/2017,E&T,Dvsa Mot Comp 2,21/06/2017,307.50,Materials - General,Government Services-Not Elsewhere Classified,GPC
Statement 20/06/2017 to 17/07/2017,E&T,East Midlands Leicester,22/06/2017,21.50,Casual/Essential - General,Automobile Parking Lots and Garages,GPC
Statement 20/06/2017 to 17/07/2017,E&T,East Midlands Trains,18/06/2017,68.95,Casual/Essential - General,Passenger Railways,GPC
Statement 20/06/2017 to 17/07/2017,E&T,East Midlands Trains,10/07/2017,25.30,Client/Volunteers - General,Passenger Railways,GPC
Statement 20/06/2017 to 17/07/2017,E&T,East Midlands Trains,26/06/2017,143.00,Other Equipment & Materials - General,Passenger Railways,GPC
Statement 20/06/2017 to 17/07/2017,E&T,East Midlands Trains,05/07/2017,17.10,Other Equipment & Materials - General,Passenger Railways,GPC
Statement 20/06/2017 to 17/07/2017,E&T,East Midlands Trains,12/07/2017,29.90,Public Transport -  Staff - General,Passenger Railways,GPC
Statement 20/06/2017 to 17/07/2017,E&T,East Midlands Trains,05/07/2017,155.20,Training Expenses - General,Passenger Railways,GPC
Statement 20/06/2017 to 17/07/2017,E&T,Espo,30/06/2017,82.61,Stationery - General,Government Services-Not Elsewhere Classified,GPC
Statement 20/06/2017 to 17/07/2017,E&T,Espo,30/06/2017,38.96,Stationery - General,Government Services-Not Elsewhere Classified,GPC
Statement 20/06/2017 to 17/07/2017,E&T,Espo,30/06/2017,211.65,Stationery - General,Government Services-Not Elsewhere Classified,GPC
Statement 20/06/2017 to 17/07/2017,E&T,Lcc Catering Services,27/06/2017,4.50,Other Expenditure - General,Government Services-Not Elsewhere Classified,GPC
Statement 20/06/2017 to 17/07/2017,E&T,Ncs*vue Citb Hs&e Rev,06/07/2017,18.00,Training Expenses - General,Schools and Educational Services-Not Elsewhere Cla,GPC
Statement 20/06/2017 to 17/07/2017,E&T,Nott Emt Carpark,19/06/2017,8.00,Casual/Essential - General,Passenger Railways,GPC
Statement 20/06/2017 to 17/07/2017,E&T,Premier Inn44011950,21/06/2017,195.00,Subsistence - General,PREMIER TRAVEL,GPC
Statement 20/06/2017 to 17/07/2017,E&T,Premier Inn44521260,05/07/2017,46.25,Training Expenses - General,PREMIER TRAVEL,GPC
Statement 20/06/2017 to 17/07/2017,E&T,Rhino Textile Products,28/06/2017,300.00,Other Expenditure - General,Industrial Supplies Not Elsewhere Classified,GPC
Statement 20/06/2017 to 17/07/2017,E&T,Safetyspecs Co Uk,20/06/2017,131.94,Other Equipment & Materials - General,Durable Goods Not Elsewhere Classified,GPC
Statement 20/06/2017 to 17/07/2017,E&T,Tesco Stores 2950,24/06/2017,20.00,Materials - General,"Grocery Stores, Supermarkets",GPC
Statement 20/06/2017 to 17/07/2017,E&T,Travelodge Gb0000,27/06/2017,85.00,Training Expenses - General,Travelodge,GPC
Statement 20/06/2017 to 17/07/2017,E&T,Wilko.Com,21/06/2017,40.20,Materials - General,Household Appliance Stores,GPC
Statement 20/06/2017 to 17/07/2017,E&T,Www.Thomastelford.Co.U,11/07/2017,44.00,Printing - General,Miscellaneous Publishing and  Printing,GPC
Statement 20/06/2017 to 17/07/2017,Leicestershire Highways,Dvla Vehicle Tax,23/06/2017,202.50,Road Licences - General,Government Services-Not Elsewhere Classified,GPC
Statement 20/06/2017 to 17/07/2017,Leicestershire Highways,Dvla Vehicle Tax,23/06/2017,242.50,Road Licences - General,Government Services-Not Elsewhere Classified,GPC
Statement 20/06/2017 to 17/07/2017,Leicestershire Highways,Dvla Vehicle Tax,23/06/2017,167.50,Road Licences - General,Government Services-Not Elsewhere Classified,GPC
Statement 20/06/2017 to 17/07/2017,Leicestershire Highways,Dvla Vehicle Tax,23/06/2017,242.50,Road Licences - General,Government Services-Not Elsewhere Classified,GPC
Statement 20/06/2017 to 17/07/2017,Leicestershire Highways,Dvla Vehicle Tax,23/06/2017,167.50,Road Licences - General,Government Services-Not Elsewhere Classified,GPC
Statement 20/06/2017 to 17/07/2017,Leicestershire Highways,Dvla Vehicle Tax,23/06/2017,167.50,Road Licences - General,Government Services-Not Elsewhere Classified,GPC
Statement 20/06/2017 to 17/07/2017,Leicestershire Highways,Dvla Vehicle Tax,23/06/2017,242.50,Road Licences - General,Government Services-Not Elsewhere Classified,GPC
Statement 20/06/2017 to 17/07/2017,Leicestershire Highways,Dvla Vehicle Tax,23/06/2017,242.50,Road Licences - General,Government Services-Not Elsewhere Classified,GPC
Statement 20/06/2017 to 17/07/2017,Leicestershire Highways,Dvla Vehicle Tax,27/06/2017,242.50,Road Licences - General,Government Services-Not Elsewhere Classified,GPC
Statement 20/06/2017 to 17/07/2017,Public Health,Amazon UK Marketplace,21/06/2017,4.17,Other Equipment & Materials - General,Miscellaneous and Specialty Retail Stores,GPC
Statement 20/06/2017 to 17/07/2017,Public Health,Charnwood Borough Counci,28/06/2017,1.60,Subsistence - General,Automobile Parking Lots and Garages,GPC
Statement 20/06/2017 to 17/07/2017,Public Health,Charnwood Borough Counci,07/07/2017,2.20,Subsistence - General,Automobile Parking Lots and Garages,GPC
Statement 20/06/2017 to 17/07/2017,Public Health,East Midlands Leicester,19/06/2017,7.50,Subsistence - General,Automobile Parking Lots and Garages,GPC
Statement 20/06/2017 to 17/07/2018,Public Health,Facebk Brhc8cww32,30/06/2017,169.76,Advertising - General,Advertising Services,GPC
Statement 20/06/2017 to 17/07/2017,Public Health,Gb Liners,22/06/2017,187.00,Rent - General,"Motor Freight Carriers, and Trucking",GPC
Statement 20/06/2017 to 17/07/2017,Public Health,Makro Self Service,05/07/2017,46.97,Provisions - General,Wholesale Clubs,GPC
Statement 20/06/2017 to 17/07/2017,Public Health,Paypal *derbyshires,12/07/2017,75.00,Training Expenses - General,Government Services-Not Elsewhere Classified,GPC
Statement 20/06/2017 to 17/07/2017,Public Health,Sport Park Cafe,22/06/2017,20.30,Contract Catering - General,Business Services-Not Elsewhere Classified,GPC
Statement 20/06/2017 to 17/07/2017,Public Health,Sport Park Cafe,11/07/2017,7.25,Contract Catering - General,Business Services-Not Elsewhere Classified,GPC
Statement 20/06/2017 to 17/07/2017,Public Health,Trainline,28/06/2017,29.83,Public Transport -  Staff - General,Passenger Railways,GPC
Statement 20/06/2017 to 17/07/2017,Public Health,W M Morrisons,06/07/2017,24.06,Provisions - General,"Grocery Stores, Supermarkets",GPC
Statement 20/06/2017 to 17/07/2017,Public Health,Www.Goodiesfornurses.Co,04/07/2017,243.75,Other Equipment & Materials - General,Laboratory/Medical/Dental/Ophthalmic Hospital Equi,GPC
Statement 20/06/2017 to 17/07/2017,Public Health,Www.Goodiesfornurses.Co,05/07/2017,247.50,Other Equipment & Materials - General,Laboratory/Medical/Dental/Ophthalmic Hospital Equi,GPC
"**Amounts stated are net of VAT, except where VAT has not been recovered.",,,,,,,
